Cogmind - Beta 11 X5 @@@ ROGUE MODE // 2021.07.14 @ 17:46:14 Player: Terminus Result: Self-destructed Performance ------------- Evolutions (9) 4500 Regions Visited (34) 6800 Robots Destroyed (848) 4240 Value Destroyed (42767) 42767 Prototype IDs (61) 1220 Alien Tech Used (10) 2000 Bonus (27261) 27261 TOTAL SCORE: 88788 Bonus ------- Triggered High Security 1500 High Alert Combat Kills 18107 Follower Combat Kills 1886 Network Hubs Disabled 200 Met Data Miner 300 Met Warlord at Base 500 MAIN.C Attacked Warlord 500 Warlord Defense Kill 2474 Built Enhanced Grunts 300 Met R17 at Cetus 500 Met Warlord at Research 2000 Met Warlord at Command 2000 Friendly Fire -3006 Cogmind --------- Core Integrity 271/1600 Matter 144/425 Energy 432/1200 System Corruption 0% Temperature Cool (0) Movement Immobile (Siege) Location -1/Command Parts ------- > --- POWER (2) -------- Improved Quantum Reactor Improved Quantum Reactor > --- PROPULSION (4) --- Centrium Heavy Treads Enhanced Armored Heavy Treads > --- UTILITY (15) ----- Huge Storage Unit Experimental Energy Well Experimental Signal Interpreter Experimental Targeting Computer Experimental Targeting Computer Experimental Target Analyzer AEGIS Remote Shield Improved Hacking Suite Microwarp Drive > --- WEAPON (4) ------- Helical Railgun Helical Railgun Helical Railgun Multirail > --- INVENTORY (27) --- Vortex Chain Reactor Centrium Heavy Treads Biometal Heavy Treads Biometal Heavy Treads Advanced Cooling System Advanced Matter Compressor (400) Triangulator Experimental Optical Array Advanced Sensor Array Energy Filter Advanced Kinecellerator Advanced Force Field Spacefold Activator Null Cannon Helical Railgun Helical Railgun Helical Railgun Heavy Shock Bomb Launcher CR-A16's Behemoth Slayer Peak State ------------ > --- POWER ------------ Improved Quantum Reactor Improved Quantum Reactor > --- PROPULSION ------- Centrium Heavy Treads Enhanced Armored Heavy Treads > --- UTILITY ---------- Advanced Cooling System Experimental Cooling System Huge Storage Unit Experimental Energy Well Experimental Signal Interpreter Experimental Targeting Computer Experimental Targeting Computer Experimental Target Analyzer Centrium Light Armor Plating Heavy Regenerative Plating AEGIS Remote Shield Improved Hacking Suite Microwarp Drive > --- WEAPON ----------- Multirail Multirail Multirail Multirail > --- INVENTORY -------- Vortex Chain Reactor Centrium Heavy Treads Biometal Heavy Treads Biometal Heavy Treads Advanced Cooling System Advanced Matter Compressor Triangulator Experimental Optical Array Advanced Sensor Array Energy Filter Advanced Kinecellerator Advanced Force Field Spacefold Activator Null Cannon Helical Railgun Helical Railgun Helical Railgun Helical Railgun Helical Railgun Helical Railgun Multirail Heavy Shock Bomb Launcher CR-A16's Behemoth Slayer [Rating: 254] Favorites ----------- Power Antimatter Reactor Engine Improved Deuterium Engine Power Core Micro Fission Core Reactor Antimatter Reactor Propulsion Medium Treads Treads Medium Treads Utility Huge Storage Unit Device Advanced Sensor Array Storage Huge Storage Unit Processor Experimental Targeting Computer Hackware Hacking Suite Protection Medium Regenerative Plating Artifact Microwarp Drive Weapon Hypervelocity Gauss Rifle Energy Gun Medium Laser Energy Cannon Null Cannon Ballistic Gun Hypervelocity Gauss Rifle Ballistic Cannon Light Cannon Launcher Precision Grenade Launcher Special Weapon Plasma Cutter Slashing Weapon Axe Piercing Weapon Spear Build | -11 -10 -10 -9 -9 -8 -7 -7 -7 -7 -6 -6 -6 -6 -6 -5 -5 -5 -5 -5 -4 -4 -4 -4 -4 -4 -4 -4 -3 -3 -2 -2 -2 -1 -1 ------- Run | Scr Mat Min Mat Min Mat Fac Low Low Dat Pro Fac Low Low Zio Pro Fac Upp Upp War Pro Fac Was Fac Ext Cet Arc Hub Res Tes Res Qua Sec Acc Com Slots Evolved 18 | . . . 2 . 2 2 . . . . 2 . . . . 2 . . . . 2 . . . . . . 2 . 2 . . 2 . Power 1 | . . . . . . . . . . . . . . . . . . . . . . . . . . . . . . 1 . . . . Propulsion 2 | . . . . . 1 . . . . . 1 . . . . . . . . . . . . . . . . . . . . . . . Utility 13 | . . . 1 . 1 2 . . . . 1 . . . . 2 . . . . 2 . . . . . . 1 . 1 . . 2 . Weapon 2 | . . . 1 . . . . . . . . . . . . . . . . . . . . . . . . 1 . . . . . . Parts Attached 575 | 6 12 2 37 1 11 67 4 8 14 9 60 8 2 7 4 53 21 2 10 21 4 6 1 2 18 4 5 20 48 11 25 43 20 9 Power 35 | 1 1 . 2 . 2 9 . . 1 . 2 . . . . 2 1 . . . . 1 . . . . . 2 1 3 4 2 . 1 Engine 14 | 1 1 . 2 . 2 6 . . . . 1 . . . . 1 . . . . . . . . . . . . . . . . . . Core 5 | . . . . . . 3 . . . . . . . . . 1 1 . . . . . . . . . . . . . . . . . Reactor 16 | . . . . . . . . . 1 . 1 . . . . . . . . . . 1 . . . . . 2 1 3 4 2 . 1 Propulsion 66 | 2 2 . 10 . 4 4 1 . . 1 13 3 . . 1 8 2 . 3 2 . 2 . . 3 . . 2 . . 2 1 . . Treads 66 | 2 2 . 10 . 4 4 1 . . 1 13 3 . . 1 8 2 . 3 2 . 2 . . 3 . . 2 . . 2 1 . . Leg . | . . . . . . . . . . . . . . . . . . . . . . . . . . . . . . . . . . . Wheel . | . . . . . . . . . . . . . . . . . . . . . . . . . . . . . . . . . . . Hover . | . . . . . . . . . . . . . . . . . . . . . . . . . . . . . . . . . . . Flight . | . . . . . . . . . . . . . . . . . . . . . . . . . . . . . . . . . . . Utility 272 | 1 3 2 10 1 3 34 3 4 6 4 28 3 2 4 . 29 11 2 6 10 4 3 1 2 8 4 5 11 24 5 8 22 7 2 Device 144 | . 1 2 2 . 1 15 2 2 1 2 13 2 1 1 . 21 7 1 3 7 1 2 1 . 3 2 5 9 15 3 4 11 4 . Storage 16 | 1 2 . 3 1 . 1 . . 1 . 1 . . . . . . . . . . . . . . . . . 2 . 2 1 1 . Processor 16 | . . . 1 . . 1 . . . . . . . . . 3 1 . 2 . . 1 . 1 1 . . . 1 1 . 3 . . Hackware 15 | . . . . . 1 1 . . . 1 4 . . . . . 1 . . . 2 . . . 1 1 . 1 1 . . . . 1 Protection 77 | . . . 4 . 1 16 1 2 4 1 10 1 1 3 . 5 2 1 1 3 1 . . 1 3 1 . 1 5 1 2 3 2 1 Artifact 4 | . . . . . . . . . . . . . . . . . . . . . . . . . . . . . . . . 4 . . Weapon 202 | 2 6 . 15 . 2 20 . 4 7 4 17 2 . 3 3 14 7 . 1 9 . . . . 7 . . 5 23 3 11 18 13 6 Energy Gun 3 | 1 1 . . . . . . . . . . . . . . . . . . . . . . . 1 . . . . . . . . . Energy Cannon 12 | . . . . . . . . . . . 1 . . . . . . . . . . . . . . . . . 5 1 2 1 2 . Ballistic Gun 143 | 1 . . 9 . 2 14 . 2 6 2 13 1 . 3 1 9 6 . 1 8 . . . . 6 . . 5 15 2 9 15 8 5 Ballistic Cannon 10 | . 5 . 5 . . . . . . . . . . . . . . . . . . . . . . . . . . . . . . . Launcher 13 | . . . . . . 3 . 1 . 1 . 1 . . 2 4 . . . . . . . . . . . . . . . . 1 . Special Weapon 3 | . . . 1 . . . . . 1 . . . . . . . . . . . . . . . . . . . . . . . 1 . Impact Weapon . | . . . . . . . . . . . . . . . . . . . . . . . . . . . . . . . . . . . Slashing Weapon 3 | . . . . . . 3 . . . . . . . . . . . . . . . . . . . . . . . . . . . . Piercing Weapon 15 | . . . . . . . . 1 . 1 3 . . . . 1 1 . . 1 . . . . . . . . 3 . . 2 1 1 Special Melee Weapon . | . . . . . . . . . . . . . . . . . . . . . . . . . . . . . . . . . . . Unidentified Prototypes 52 | . 1 . 3 . . 5 . . 1 . 2 . . . . . . . 4 1 . 1 . . 5 . . 2 9 2 2 10 3 1 Parts Lost 88 | . 1 . . . 1 7 1 2 1 1 18 1 . . 2 9 9 . 1 6 1 . . . . . . 3 2 . 3 10 2 7 Power 6 | . . . . . . 1 . . . . 2 . . . . 1 1 . . . . . . . . . . . . . 1 . . . Propulsion 17 | . . . . . . 3 1 . . . 6 . . . 2 . 2 . 1 1 . . . . . . . . . . . 1 . . Utility 37 | . . . . . 1 2 . 1 1 . 7 . . . . 5 4 . . 2 1 . . . . . . 1 1 . 1 6 . 4 Weapon 28 | . 1 . . . . 1 . 1 . 1 3 1 . . . 3 2 . . 3 . . . . . . . 2 1 . 1 3 2 3 Highest Loss Streak 7 | . 1 . . . 1 2 1 1 1 1 7 1 . . 1 4 5 . 1 4 1 . . . . . . 1 1 . 1 3 1 6 Average Slot Usage (%) 93 | . 98 99 99 100 99 99 100 98 96 99 98 99 100 98 99 93 80 79 85 86 89 89 89 89 88 89 89 89 89 89 89 83 83 83 Engine 3 | . 14 14 11 11 9 5 7 7 4 . . 6 6 6 6 3 . . . . . . . . . . . . . . . . . . Reactor 2 | . . . . . . . . . 2 7 5 . . . . . . . . . . 4 5 5 5 5 5 4 4 6 7 8 8 8 Treads 17 | . 27 28 22 22 27 22 23 23 23 23 25 26 26 26 25 17 11 11 13 15 10 10 10 10 10 10 10 9 9 8 7 7 8 8 Device 12 | . 12 13 11 11 9 13 14 14 7 14 11 13 13 13 13 12 11 11 12 11 16 15 15 15 10 10 10 9 9 12 12 11 15 13 Storage 6 | . 14 14 11 11 9 7 7 7 7 7 6 6 6 6 6 5 5 5 5 5 5 5 5 5 5 5 5 4 4 4 4 7 5 8 Processor 10 | . . . . . . 7 7 7 7 7 5 . . . . 9 12 17 17 17 15 21 21 21 25 26 26 23 23 21 19 17 18 16 Hackware 10 | . . . . . 9 15 15 15 15 15 19 20 20 20 20 16 12 5 5 5 13 10 10 10 10 10 10 14 14 13 13 7 4 6 Protection 4 | . . . 9 11 9 1 . . 7 . 1 5 6 6 6 5 2 3 5 5 5 5 5 5 4 5 5 4 3 3 3 3 4 4 Ballistic Gun 17 | . . . 4 33 26 21 23 19 13 19 18 19 20 18 19 16 15 17 16 16 15 15 15 15 14 15 15 18 16 17 16 16 15 15 Ballistic Cannon 2 | . 27 28 28 . . . . . . . . . . . . . . . . . . . . . . . . . . . . . . . Naked Turns . | . . . . . . . . . . . . . . . . . . . . . . . . . . . . . . . . . . . Heaviest Build 196 | 14 32 32 44 103 108 112 112 112 124 120 120 117 118 118 118 123 121 107 119 124 115 125 126 126 126 125 126 132 140 154 175 191 196 192 Greatest Support 170 | 40 40 40 46 44 72 84 84 78 78 78 106 104 104 104 112 130 120 120 120 145 145 145 140 140 160 160 160 160 140 140 155 170 170 170 Greatest Overweight (x) 3 | 3 . . 1 2 1 1 1 1 1 1 1 1 1 1 1 1 1 . 1 1 . . . . . . . . . 1 2 1 1 1 Average Overweight (x) . | . . . . 1 1 1 1 1 1 1 . 1 1 . 1 . . . . . . . . . . . . . . 1 . . 1 1 Largest Inventory Capacity 27 | 8 15 15 25 25 25 25 25 25 25 25 25 25 25 25 25 25 25 25 25 25 25 25 25 25 25 25 25 25 25 25 25 27 27 27 Average Capacity 24 | 7 13 15 15 24 25 25 25 25 25 25 25 25 25 25 25 25 25 25 25 25 25 25 25 25 25 25 25 25 25 25 25 25 27 27 Most Carried 27 | 2 15 15 15 16 25 25 25 25 25 25 25 25 24 25 25 25 23 15 25 25 24 25 25 25 25 25 25 25 25 25 25 27 27 27 Average Carried 22 | 1 11 15 14 15 22 24 24 24 24 24 23 22 22 24 24 24 17 14 19 23 20 23 24 24 24 24 25 24 24 24 24 24 25 24 Final Capacity 27 | 8 15 15 15 25 25 25 25 25 25 25 25 25 25 25 25 25 25 25 25 25 25 25 25 25 25 25 25 25 25 25 25 27 27 27 Final Carried 27 | 2 15 15 15 16 25 25 25 24 25 24 22 22 23 25 24 24 13 15 25 21 24 25 24 25 25 25 25 25 25 25 25 27 23 23 Class Distribution -------------------- 25% | Scavenger-Gunner 14% | Tank 13% | Hacker-Skirmisher 11% | Hacker-Gunner 10% | Scavenger-Tank 8% | Hacker-Mutant 5% | Mutant 3% | Hacker-Tank Dominant Class ---------------- Mutant | -10/Materials Mutant | -10/Mines Tank | -9/Materials Tank | -9/Mines Tank | -8/Materials Hacker-Skirmisher | -7/Factory Hacker-Skirmisher | -7/Lower Caves Hacker-Skirmisher | -7/Lower Caves Hacker-Tank | -7/Data Miner Hacker-Skirmisher | -6/Proximity Caves Scavenger-Skirmisher | -6/Factory Scavenger-Tank | -6/Lower Caves Scavenger-Tank | -6/Lower Caves Scavenger-Tank | -6/Zion Scavenger-Tank | -5/Proximity Caves Hacker-Skirmisher | -5/Factory Hacker-Skirmisher | -5/Upper Caves Machinist-Gunner | -5/Upper Caves Scavenger-Gunner | -5/Warlord Scavenger-Gunner | -4/Proximity Caves Scavenger-Gunner | -4/Factory Scavenger-Gunner | -4/Waste Scavenger-Gunner | -4/Factory Scavenger-Gunner | -4/Extension Scavenger-Gunner | -4/Cetus Scavenger-Gunner | -4/Archives Scavenger-Gunner | -4/Hub_04(d) Scavenger-Gunner | -3/Research Hacker-Mutant | -3/Testing Hacker-Gunner | -2/Research Hacker-Gunner | -2/Quarantine Scavenger-Gunner | -2/Section 7 Scavenger-Gunner | -1/Access Scavenger-Gunner | -1/Command Resources | -11 -10 -10 -9 -9 -8 -7 -7 -7 -7 -6 -6 -6 -6 -6 -5 -5 -5 -5 -5 -4 -4 -4 -4 -4 -4 -4 -4 -3 -3 -2 -2 -2 -1 -1 ----------- Run | Scr Mat Min Mat Min Mat Fac Low Low Dat Pro Fac Low Low Zio Pro Fac Upp Upp War Pro Fac Was Fac Ext Cet Arc Hub Res Tes Res Qua Sec Acc Com Matter Collected 35258 | 213 882 216 1443 196 1041 2399 71 223 375 262 1822 495 341 57 338 3183 640 101 415 476 230 315 . 450 540 112 323 1022 1870 615 2831 5874 4468 1419 Remotely 5211 | . . . . . . 132 . . . . 311 57 . . . 1378 346 . 128 196 . . . . . . 221 276 . 291 330 1545 . . Salvage Created 55701 | . 848 332 1614 664 2080 3067 55 138 431 85 2008 389 30 . 289 3405 579 83 1140 844 508 1584 . 632 530 369 734 2311 2064 531 3900 9756 10682 4019 Parts 2746 | . 60 18 100 26 126 169 3 8 24 . 116 22 . . 15 209 26 10 57 49 25 35 . 26 39 17 36 107 133 25 207 432 484 142 Haulers Intercepted 29 | . 2 . 6 . 4 7 . . . . 2 . . . . . . . . . . . . . . . . 1 1 . 1 2 3 . Recyclers Shooed 29 | . . 1 . . 3 1 . . . . 3 . . . . 4 . . . . . . . 1 . . 1 1 1 . . . 5 8 Parts Field Recycled . | . . . . . . . . . . . . . . . . . . . . . . . . . . . . . . . . . . . Retrieved Matter . | . . . . . . . . . . . . . . . . . . . . . . . . . . . . . . . . . . . Parts Self-Destructed 237 | . . . . . . . 3 6 . . . 1 2 . 12 . 16 . 153 44 . . . . . . . . . . . . . . Prevented 14 | . . . . . . . . . . . . . . . 2 . . . 12 . . . . . . . . . . . . . . . Kills | -11 -10 -10 -9 -9 -8 -7 -7 -7 -7 -6 -6 -6 -6 -6 -5 -5 -5 -5 -5 -4 -4 -4 -4 -4 -4 -4 -4 -3 -3 -2 -2 -2 -1 -1 ------- Run | Scr Mat Min Mat Min Mat Fac Low Low Dat Pro Fac Low Low Zio Pro Fac Upp Upp War Pro Fac Was Fac Ext Cet Arc Hub Res Tes Res Qua Sec Acc Com Combat Hostiles Destroyed 649 | . 22 7 32 10 22 34 1 4 4 4 27 4 . . 10 46 5 . 15 10 5 6 . 8 4 3 5 27 19 5 37 106 119 48 Melee 4 | . . . . . . 2 . . . . . . . . . . 1 . . . . . . . . . . . . . 1 . . . Guns 539 | . . . 3 10 22 29 1 2 4 . 21 1 . . 2 33 4 . 15 9 5 6 . 8 4 3 5 27 18 5 35 104 116 47 Cannons 59 | . 22 7 29 . . . . . . . . . . . . . . . . . . . . . . . . . 1 . . . . . AOE 39 | . . . . . . 3 . 2 . 4 6 3 . . 8 12 . . . . . . . . . . . . . . . . 1 . Classes Destroyed 29 | . 8 . 1 2 1 1 . 1 . . 2 2 . . . 1 1 . 4 . . 1 . . . . . . . 1 2 . 1 . Worker 57 | . 2 . 2 . 2 15 . . . . . . . . . 12 . . . . 1 . . . . . 1 1 3 . 1 7 8 2 Builder 34 | . 2 . 1 . 4 4 . . . . 1 . . . . 2 . . . . 1 . . 1 . . 2 1 . . . 5 10 . Tunneler 2 | . . . . . . . . . . . 1 . . . . 1 . . . . . . . . . . . . . . . . . . Hauler 29 | . 2 . 6 . 4 7 . . . . 2 . . . . . . . . . . . . . . . . 1 1 . 1 2 3 . Recycler 45 | . 1 2 6 3 7 10 . . . . 2 . . . . 4 . . . . . . . 1 . . 1 . 2 1 . . 2 3 Carrier 6 | . . . . . . . . . . . . . . . . . . . . . . . . . . . . . . . 1 1 2 2 Mechanic 6 | . . . . . . . . . . . . . . . . . . . 1 . . . . . . . . . . . 1 2 2 . Operator 12 | . 4 . 1 . 1 1 . . . . 1 . . . . . . . . . 1 . . . . 2 . . . . 1 . . . Watcher 47 | . 3 . 5 . 4 5 . . . . 2 . . . . 4 . . . . 1 . . . . . 2 3 3 . 3 5 6 1 Swarmer 70 | . 2 3 7 . . 6 . 2 . . 4 3 . . 6 8 . . . . . . . . . . . 5 . . . 8 13 3 Saboteur 9 | . . . . . . . . . . . . . . . . 1 . . . . . . . . . . . . . . . 2 3 3 Grunt 249 | . 20 4 17 7 11 12 . . . 4 9 . . . 4 15 4 . 5 4 4 . . 2 . . 4 11 3 . 10 40 41 18 Brawler 29 | . . . . 1 . . . . . . 2 . . . . 1 . . 1 . . . . . . . . . 1 . 1 5 9 8 Duelist 21 | . . . . 2 1 . . . . . 2 . . . . . . . . . . . . . . . . . . . 1 5 5 5 Protector 10 | . . . . . . . . . . . 1 . . . . . . . . . . . . . . . . . . . . 3 3 3 Sentry 65 | . . . 8 . 8 5 . . . . 6 . . . . 6 . . . . 1 . . 3 . 3 1 4 2 . 2 8 8 . Specialist 2 | . . . . . . . . . . . . . . . . . . . 1 . . . . . . . . . . . 1 . . . Hunter 45 | . . . . . 2 3 1 . . . . . . . . 8 . . . . . . . . 1 . . 4 . 3 2 7 14 . Programmer 109 | . . . . . . 8 . 1 . . 3 . . . . 7 . . 4 5 . . . 1 . . . 3 12 1 17 22 21 4 Behemoth 9 | . . . . . . . . . . . . . . . . . 1 . . 1 . . . 2 . . . . . . . 2 2 1 Compactor 6 | . . . . . . . . . . . . . . . . . . . . . . 6 . . . . . . . . . . . . Cetus Guard 3 | . . . . . . . . . . . . . . . . . . . . . . . . . 3 . . . . . . . . . Quarantine Guard 2 | . . . . . . . . . . . . . . . . . . . . . . . . . . . . . . . 2 . . . S7 Guard 2 | . . . . . . . . . . . . . . . . . . . . . . . . . . . . . . . . 2 . . Enhanced Grunt 5 | . . . . . . . . . 4 . . . . . . . . . . . . . . . 1 . . . . . . . . . Investigator 1 | . . . . . . . . . . . . . . . . . . . . . . . . . . . . . . . . . 1 . Striker 3 | . . . . . . . . . . . . . . . . . . . 1 . . . . . . . . . . . . . . 2 Executioner 6 | . . . . . . . . . . . . . . . . . . . 3 . . . . . . . . . . . . 2 . 1 Fortress 1 | . . . . . . . . . . . . . . . . . . . . . . . . . . . . . . . 1 . . . Protovariant H 1 | . . . . . . . . . . . . . . . . . . . . . . . . . . . . . 1 . . . . . Decomposer 4 | . . . . . . . . . . . . 1 1 . . . 2 . . . . . . . . . . . . . . . . . Packrat 3 | . . . . . . . . . . . . . . . . . 2 . . 1 . . . . . . . . . . . . . . Samaritan 6 | . . . . . . . . . . . . 3 . . . . . 2 . 1 . . . . . . . . . . . . . . Thief 1 | . . . . . . . . . . . . 1 . . . . . . . . . . . . . . . . . . . . . . Butcher 1 | . . . . . . . . . . . . . . . . . . . . . . . . 1 . . . . . . . . . . Fireman 1 | . . . . . . . . . . . . . . . . . . . . . . . . . . . . . . 1 . . . . Mutant 1 | . . . . . . . . 1 . . . . . . . . . . . . . . . . . . . . . . . . . . Best Kill Streak 30 | . 7 4 10 3 8 7 1 2 2 4 8 3 . . 4 14 4 . 8 7 4 3 . 4 2 2 4 11 6 4 12 9 30 12 Combat Bots Only 17 | . 6 3 4 3 5 4 1 2 2 4 6 3 . . 4 5 4 . 8 6 4 3 . 3 2 2 4 10 6 3 10 8 17 12 Max Kills in Single Turn 8 | . 2 2 2 1 2 3 1 2 1 1 8 2 1 . 3 5 1 1 3 1 2 1 . 2 2 2 2 2 2 2 3 3 4 3 Gunslinging 2 | . . . . . . . . . . . 1 . . . . . . . 1 . . . . . . . . 1 . . 1 1 2 2 Exploded 6 | . . . . . . 2 . 2 . 1 6 2 . . 3 3 . . . . . . . . . . . . . . . . 1 . Melee 1 | . . . . . . 1 . . . . . . . . . . 1 . . . . . . . . . . . . . 1 . . . Uniques/NPCs Destroyed 2 | . . . . . . . . . . . . . . . . . . . . . . . . . 2 . . . . . . . . . Revision 17 (-4/Cetus) A7 (-4/Cetus) Combat | -11 -10 -10 -9 -9 -8 -7 -7 -7 -7 -6 -6 -6 -6 -6 -5 -5 -5 -5 -5 -4 -4 -4 -4 -4 -4 -4 -4 -3 -3 -2 -2 -2 -1 -1 -------- Run | Scr Mat Min Mat Min Mat Fac Low Low Dat Pro Fac Low Low Zio Pro Fac Upp Upp War Pro Fac Was Fac Ext Cet Arc Hub Res Tes Res Qua Sec Acc Com Damage Taken 42645 | . 580 288 980 158 936 2373 109 450 498 328 3022 108 . . 465 4152 2333 . 350 1890 665 . . 236 152 . 761 1522 1804 370 1674 6249 6733 3459 Core 3401 | . 131 46 148 10 14 340 24 . 123 18 309 . . . 71 317 71 . 20 75 27 . . 11 . . 22 187 88 24 37 552 615 121 Absorbed by Shields 13594 | . . . . . . . . . . . . . . . . . . . . . . . . 100 98 . . . . . 1530 4797 5503 1566 Reduced by Siege Mode 1968 | . . . . . . . . . . . . . . . . 70 399 . . 129 57 . . . 6 . 14 71 70 22 109 470 328 223 Core Remaining (%) 62 | 100 . 29 . 60 97 . . . . 27 . . . . 55 . . . . 51 . . . . . . 94 . 78 . . 38 . . Volleys Fired 1671 | . 70 20 91 21 104 149 3 18 16 7 81 22 1 . 26 151 28 2 28 21 13 17 . 28 25 6 23 53 82 12 96 216 187 54 Largest 4 | . 2 2 3 3 3 3 3 3 3 1 3 3 3 . 3 3 3 3 3 3 3 3 . 3 3 3 3 4 4 4 4 4 4 4 Hottest 250 | . 70 70 109 75 75 84 84 84 99 36 99 99 99 . 99 103 101 96 96 114 114 114 . 114 114 105 105 140 250 160 250 160 180 180 Shots Fired 5250 | . 140 40 273 62 312 421 9 28 48 7 242 57 5 . 68 401 86 7 64 62 39 51 . 84 75 18 69 212 233 45 340 815 721 216 Gun 4746 | . . . 18 62 312 418 9 26 48 . 242 54 5 . 63 390 86 7 64 62 39 51 . 84 75 18 69 212 209 44 337 814 712 216 Cannon 468 | . 140 40 255 . . . . . . . . . . . . . . . . . . . . . . . . . 24 1 3 1 4 . Launcher 33 | . . . . . . 3 . 2 . 7 . 3 . . 5 11 . . . . . . . . . . . . . . . . 2 . Special 3 | . . . . . . . . . . . . . . . . . . . . . . . . . . . . . . . . . 3 . Kinetic 5181 | . 140 40 273 62 312 418 9 26 48 . 242 54 5 . 63 390 86 7 64 62 39 51 . 84 75 18 69 212 209 44 337 814 712 216 Thermal 36 | . . . . . . . . . . . . . . . . . . . . . . . . . . . . . 24 1 3 1 7 . Explosive 31 | . . . . . . 3 . 2 . 7 . 3 . . 5 11 . . . . . . . . . . . . . . . . . . Electromagnetic 2 | . . . . . . . . . . . . . . . . . . . . . . . . . . . . . . . . . 2 . Robot Hit Streak 55 | . 14 6 10 8 15 34 6 11 6 . 15 15 18 . 19 13 24 5 45 28 35 26 . 25 13 20 22 18 17 13 32 44 55 37 Robot Miss Streak 10 | . 3 3 5 2 10 4 1 3 2 . 4 4 . . 1 3 3 . 1 2 1 2 . 3 5 . 3 2 3 2 5 3 4 6 Penetration Max 3 | . . . . . . 1 . . 1 . 3 . . . 1 2 1 1 3 1 1 . . 2 1 1 1 1 1 1 1 2 2 2 Secondary Targets 126 | . . . . 1 3 4 . . 1 . 3 . . . . 1 1 . 4 5 1 . . 1 . . . 4 1 . 9 32 38 17 Max Gunslinging Chain 3 | . . . . 1 1 1 . . 1 . 2 . . . . 1 1 . 1 1 1 . . 1 . . . 1 1 . 1 1 2 3 Shots Hit Robots 3443 | . 84 18 145 37 172 253 6 10 33 . 149 25 3 . 19 187 64 3 48 60 32 30 . 61 52 12 28 138 136 26 215 636 572 189 Core Hits 1975 | . 36 10 62 17 75 114 2 7 13 13 82 17 2 . 26 141 26 2 24 24 18 13 . 17 20 9 20 65 53 12 104 301 453 197 Critical Kills 381 | . . . . 2 2 1 . . 4 . 20 4 . . 2 40 6 2 16 5 4 5 . 5 1 5 6 24 18 6 42 83 55 23 Critical Parts Destroyed 516 | . . . . . 1 6 . . 4 . 21 5 . . 4 52 13 2 14 7 4 1 . 4 12 2 8 24 29 9 63 120 76 35 Critical Strikes 968 | . 5 . 8 2 3 9 . . 12 . 48 9 . . 6 95 19 4 30 12 8 7 . 10 13 7 14 49 48 15 108 228 138 61 Destroy 954 | . . . . 2 3 8 . . 12 . 48 9 . . 6 95 19 4 30 12 8 7 . 10 13 7 14 49 48 15 108 228 138 61 Blast 13 | . 5 . 8 . . . . . . . . . . . . . . . . . . . . . . . . . . . . . . . Sever 1 | . . . . . . 1 . . . . . . . . . . . . . . . . . . . . . . . . . . . . Melee Attacks 87 | . . . . . . 14 . 6 11 7 9 . . . . 1 21 . . 7 . . . . . . . . 6 . . 2 2 1 Impact . | . . . . . . . . . . . . . . . . . . . . . . . . . . . . . . . . . . . Slashing 14 | . . . . . . 14 . . . . . . . . . . . . . . . . . . . . . . . . . . . . Piercing 73 | . . . . . . . . 6 11 7 9 . . . . 1 21 . . 7 . . . . . . . . 6 . . 2 2 1 Sneak Attacks 4 | . . . . . . 2 . . 1 . . . . . . . . . . . . . . . . . . . . . . 1 . . Combat Hostiles 1 | . . . . . . . . . . . . . . . . . . . . . . . . . . . . . . . . 1 . . Follow-up Attacks . | . . . . . . . . . . . . . . . . . . . . . . . . . . . . . . . . . . . Damage Inflicted 88072 | 1 1594 393 2763 661 3304 6552 95 466 324 627 2917 507 21 . 1483 4920 774 99 821 1321 1147 947 . 2269 1789 357 1189 4056 3056 276 2042 11886 21625 7790 Guns 73467 | . . . 178 627 3254 5577 95 203 217 . 1917 169 21 . 133 1547 380 99 821 1134 1074 947 . 2258 1789 357 979 4041 2708 276 1974 11843 21074 7775 Cannons 4788 | . 1570 379 2533 . . . . . . . . . . . . . . . . . . . . . . . . . 306 . . . . . Explosions 8005 | . . . . . . 613 . 263 . 627 936 308 . . 1350 3254 . . . . 63 . . . . . 193 . . . . . 398 . Melee 994 | . . . . . . 306 . . 107 . . . . . . . 394 . . 187 . . . . . . . . . . . . . . Ramming 769 | 1 24 14 52 34 50 56 . . . . 64 30 . . . 119 . . . . 10 . . 11 . . 17 15 42 . 68 43 104 15 Kinetic 77949 | . 1570 379 2711 627 3254 5577 95 203 217 . 1917 169 21 . 133 1547 380 99 821 1134 1074 947 . 2258 1789 357 979 4041 2708 276 1974 11843 21074 7775 Thermal 2324 | . . . . . . 381 . . . . 936 . . . 574 15 . . . . 63 . . . . . . . 306 . . . 49 . Explosive 5009 | . . . . . . 232 . 263 . 627 . 308 . . 776 2715 . . . . . . . . . . . . . . . . 88 . Electromagnetic 1027 | . . . . . . . . . . . . . . . . 524 . . . . . . . . . . 193 . . . . . 310 . Impact . | . . . . . . . . . . . . . . . . . . . . . . . . . . . . . . . . . . . Slashing 306 | . . . . . . 306 . . . . . . . . . . . . . . . . . . . . . . . . . . . . Piercing 688 | . . . . . . . . . 107 . . . . . . . 394 . . 187 . . . . . . . . . . . . . . Highest Corruption 16 | . 5 5 2 2 . 1 1 6 6 6 16 16 16 16 . 7 7 7 7 4 . . . 1 1 1 . 5 16 1 9 9 . . Average Corruption 5 | . 3 5 2 2 . 1 1 2 6 6 4 16 16 16 . 2 7 7 7 3 . . . 1 1 1 . 2 7 1 6 9 . . Corruption Purged 1 | . . . . . . . . . . . . . . . . . . . . . . . . . . 1 . . . . . . . . Effects 696 | . 27 25 5 23 . 12 3 10 14 25 16 58 39 3 . 28 30 16 2 2 . . . 3 1 4 . 7 75 1 107 160 . . Message Errors 197 | . 8 10 1 12 . 7 2 3 5 4 5 13 14 2 . 9 8 6 1 1 . . . 1 . . . 3 15 1 23 43 . . Matter Fused 151 | . 6 7 . . . . . 3 . 10 4 17 6 1 . 6 7 3 . . . . . . . . . 2 22 . 24 33 . . Heat Flow Errors 74 | . 2 3 2 2 . . . . 2 3 5 9 1 . . 2 4 2 . . . . . . . . . 1 8 . 13 15 . . Energy Discharges 100 | . 7 3 . 4 . 2 . 2 . 5 . 7 9 . . 5 4 1 1 . . . . 2 1 1 . 1 10 . 15 20 . . Parts Rejected 4 | . . 1 . . . . . . . . . . . . . . . . . . . . . . . . . . . . 2 1 . . Data Loss (minor) 82 | . 3 1 2 4 . 3 1 2 2 2 1 5 2 . . 1 4 3 . . . . . . . 3 . . 8 . 13 22 . . Data Loss (major) 27 | . 1 . . . . . . . 1 1 1 2 4 . . . 1 . . . . . . . . . . . 4 . 2 10 . . Misfires 25 | . . . . . . . . . 2 . . 1 2 . . 1 2 1 . . . . . . . . . . 5 . 5 6 . . Alerts 1 | . . . . . . . . . . . . . 1 . . . . . . . . . . . . . . . . . . . . . Weapon Failures 35 | . . . . 1 . . . . 2 . . 4 . . . 4 . . . 1 . . . . . . . . 3 . 10 10 . . Overload Shots . | . . . . . . . . . . . . . . . . . . . . . . . . . . . . . . . . . . . Overflow Damage 793 | . 18 . . . 7 90 . 18 . . 188 53 . . 107 235 . . . 4 . . . 3 . . . . 60 . 9 . 1 . Projectiles 78 | . 18 . . . . . . . . . . . . . . . . . . . . . . . . . . . 60 . . . . . Explosions 626 | . . . . . . 62 . 18 . . 187 42 . . 107 209 . . . . . . . . . . . . . . . . 1 . Melee 89 | . . . . . 7 28 . . . . 1 11 . . . 26 . . . 4 . . . 3 . . . . . . 9 . . . Knockbacks 41 | . 20 3 16 . . . . . . . . 1 . . . 1 . . . . . . . . . . . . . . . . . . Impact 3 | . 1 . . . . . . . . . . 1 . . . 1 . . . . . . . . . . . . . . . . . . Kinetic 36 | . 17 3 16 . . . . . . . . . . . . . . . . . . . . . . . . . . . . . . . Secondary 2 | . 2 . . . . . . . . . . . . . . . . . . . . . . . . . . . . . . . . . Self-Inflicted Damage 531 | . . . . . . 92 . . . . 233 . . . 46 95 . . . . . . . . . . 65 . . . . . . . Shots 11 | . . . . . . 2 . . . . 3 . . . 1 4 . . . . . . . . . . 1 . . . . . . . Rammed 80 | 1 7 2 8 3 3 7 . . . . 8 5 . . . 5 . . . . 1 . . 2 . . 1 2 3 . 9 2 9 2 Targets Rammed 87 | 1 9 2 8 3 3 10 . . . . 8 5 . . . 5 . . . . 1 . . 3 . . 1 2 3 . 9 3 9 2 Kicked . | . . . . . . . . . . . . . . . . . . . . . . . . . . . . . . . . . . . Crushed 7 | . 2 . . . . 3 . . . . . . . . . . . . . . . . . 1 . . . . . . . 1 . . Highest Temperature 349 | . 205 214 263 129 72 230 . . 93 243 223 242 250 . . 248 161 101 319 134 27 . . 12 . . 65 142 225 64 349 160 . . Average Temperature 53 | . 33 77 13 19 30 35 . . 59 87 61 113 104 . . 22 65 38 97 41 11 . . 6 . . 22 20 46 22 125 72 . . Received Heat Transfer 5750 | . 237 63 264 30 396 591 . . 72 169 492 . . . 111 495 531 . 36 174 198 . . 55 . . 151 159 36 . 118 537 504 331 Effects 5 | . . . . . . . . . . . . 2 . . . . . . 2 . . . . . . . . . . . 1 . . . Energy Bleed 1 | . . . . . . . . . . . . . . . . . . . 1 . . . . . . . . . . . . . . . Interference 2 | . . . . . . . . . . . . 2 . . . . . . . . . . . . . . . . . . . . . . Matter Decay 2 | . . . . . . . . . . . . . . . . . . . 1 . . . . . . . . . . . 1 . . . Siege Activations 82 | . . . . . . . . . . . . . . . . 8 2 . 1 3 1 . . 1 2 1 1 2 3 1 9 24 17 6 Total Turns 2258 | . . . . . . . . . . . . . . . . 129 107 . 7 66 19 . . 11 28 4 13 58 81 14 154 901 347 319 Longest Duration 184 | . . . . . . . . . . . . . . . . 27 57 . 7 34 19 . . 11 19 4 13 43 37 14 46 151 71 184 Robots Corrupted 1 | . . . . . . . . . . . . . . . . 1 . . . . . . . . . . . . . . . . . . Combat Hostiles 1 | . . . . . . . . . . . . . . . . 1 . . . . . . . . . . . . . . . . . . Parts Fried 8 | . . . . . . . . . . . . 1 . . . 2 . . . . . . . 3 . . . . . . . . 2 . Impact Corruptions 8 | . . . . . 1 . . . . . 1 2 . . . 1 . . . . . . . 1 . . . . . . 1 1 . . Robots Melted . | . . . . . . . . . . . . . . . . . . . . . . . . . . . . . . . . . . . Combat Hostiles . | . . . . . . . . . . . . . . . . . . . . . . . . . . . . . . . . . . . Parts Melted 15 | . . . . . . 1 . . . . . . . . . . . . 1 . . . . . . . . . . . 12 . 1 . Heat Transferred 1761 | . . . . . . 200 . . . . 650 . . . 560 50 . . . . 100 . . . . . . . 150 . . . 51 . Parts Sabotaged 3 | . . . . . . . . . . . . . . . . . . . . . . . . . . . . . . . . . . 3 Parts Stolen . | . . . . . . . . . . . . . . . . . . . . . . . . . . . . . . . . . . . Parts Stripped . | . . . . . . . . . . . . . . . . . . . . . . . . . . . . . . . . . . . Power Chain Reactions . | . . . . . . . . . . . . . . . . . . . . . . . . . . . . . . . . . . . Missiles Intercepted . | . . . . . . . . . . . . . . . . . . . . . . . . . . . . . . . . . . . Alert | -11 -10 -10 -9 -9 -8 -7 -7 -7 -7 -6 -6 -6 -6 -6 -5 -5 -5 -5 -5 -4 -4 -4 -4 -4 -4 -4 -4 -3 -3 -2 -2 -2 -1 -1 ------- Run | Scr Mat Min Mat Min Mat Fac Low Low Dat Pro Fac Low Low Zio Pro Fac Upp Upp War Pro Fac Was Fac Ext Cet Arc Hub Res Tes Res Qua Sec Acc Com Peak Influence 4542 | . 429 272 551 205 286 890 . . . . 844 . . . . 2009 . . . . 408 168 568 484 774 448 490 678 573 822 942 2174 4542 4132 Initial 2906 | . . 75 47 109 1 8 . . . . 56 . . . . 100 . . . . 91 142 . 179 100 246 156 257 296 161 462 179 1304 2906 Average 582 | . 260 126 239 36 116 261 . . . . 321 . . . . 454 . . . . 177 87 352 253 488 419 237 489 309 612 463 943 2512 3329 Maximum Alert Level 5 | . 2 1 2 1 1 3 . . . . 3 . . . . 5 . . . . 2 . 2 2 3 2 2 3 2 3 3 5 5 5 Low Security (%) 37 | 100 18 83 43 98 89 42 . . . . 39 . . . . 60 . . . . 75 100 11 43 6 . 13 5 5 25 17 10 . . Level 1 28 | . 78 16 46 1 10 40 . . . . 37 . . . . 8 . . . . 16 . 59 43 16 17 84 26 82 . 30 15 . . Level 2 12 | . 2 . 10 . . 11 . . . . 6 . . . . 8 . . . . 8 . 28 13 66 82 2 67 11 9 34 10 . . Level 3 6 | . . . . . . 5 . . . . 16 . . . . . . . . . . . . . 11 . . . . 64 17 12 . . Level 4 6 | . . . . . . . . . . . . . . . . 9 . . . . . . . . . . . . . . . 44 24 . Level 5 5 | . . . . . . . . . . . . . . . . 3 . . . . . . . . . . . . . . . 7 55 55 High Security 3 | . . . . . . . . . . . . . . . . 7 . . . . . . . . . . . . . . . . 19 44 Max Security . | . . . . . . . . . . . . . . . . . . . . . . . . . . . . . . . . . . . Squads Dispatched 192 | . 7 1 6 . 1 10 . . . . 10 . . . . 21 . . . . 2 . 1 2 . . 4 9 9 1 11 26 40 31 Investigation 21 | . 3 1 4 . . 1 . . . . 1 . . . . 2 . . . . 1 . . 1 . . 1 2 1 . . 2 1 . Extermination 43 | . . . . . . 6 . . . . 4 . . . . 4 . . . . 1 . 1 . . . . 3 4 . 6 8 4 2 Reinforcement 33 | . 4 . 2 . 1 2 . . . . 2 . . . . 3 . . . . . . . 1 . . . 2 3 1 2 5 5 . Assault 79 | . . . . . . . . . . . 3 . . . . 9 . . . . . . . . . . . 2 . . 1 10 25 29 Garrison 16 | . . . . . . 1 . . . . . . . . . 3 . . . . . . . . . . 3 . 1 . 2 1 5 . Intercept . | . . . . . . . . . . . . . . . . . . . . . . . . . . . . . . . . . . . Construction Impeded 11 | . . . . . 1 . . . . . . . . . . 3 . . . . . . . 1 . . . 1 . . . 2 3 . Haulers Reinforced 6 | . . . . . . 1 . . . . . . . . . . . . . . . . . . . . . 1 . 1 . 1 2 . Cargo Convoy Interrupts 1 | . . . . . . . . . . . 1 . . . . . . . . . . . . . . . . . . . . . . . Stealth | -11 -10 -10 -9 -9 -8 -7 -7 -7 -7 -6 -6 -6 -6 -6 -5 -5 -5 -5 -5 -4 -4 -4 -4 -4 -4 -4 -4 -3 -3 -2 -2 -2 -1 -1 --------- Run | Scr Mat Min Mat Min Mat Fac Low Low Dat Pro Fac Low Low Zio Pro Fac Upp Upp War Pro Fac Was Fac Ext Cet Arc Hub Res Tes Res Qua Sec Acc Com Distress Signals 42 | . 1 . 2 . 2 1 . . . . . . . . . 2 . . 1 . . . . 2 2 . 5 4 . 8 3 1 6 2 Communications Jammed . | . . . . . . . . . . . . . . . . . . . . . . . . . . . . . . . . . . . Distress Signals . | . . . . . . . . . . . . . . . . . . . . . . . . . . . . . . . . . . . Times Spotted 1037 | . 39 9 43 10 29 54 1 8 4 4 37 4 . . 15 72 5 . 48 10 7 4 . 17 12 3 11 32 27 5 53 140 197 137 Peak Tracking Total 21 | . 6 3 4 3 3 6 1 3 2 4 7 3 . . 9 21 4 . 14 6 5 1 1 4 5 1 7 11 4 3 5 9 18 21 Tactical Retreats 61 | . 1 . 1 . 1 1 . 4 . . 2 . . . 1 6 . . 2 . . . . 1 . . 3 1 . 1 9 7 13 7 Traps | -11 -10 -10 -9 -9 -8 -7 -7 -7 -7 -6 -6 -6 -6 -6 -5 -5 -5 -5 -5 -4 -4 -4 -4 -4 -4 -4 -4 -3 -3 -2 -2 -2 -1 -1 ------- Run | Scr Mat Min Mat Min Mat Fac Low Low Dat Pro Fac Low Low Zio Pro Fac Upp Upp War Pro Fac Was Fac Ext Cet Arc Hub Res Tes Res Qua Sec Acc Com Traps Triggered 15 | . 3 . 1 . . 3 . . . . 3 . . . . 2 . . . . 1 . . . . . . . 1 . . 1 . . Indirectly . | . . . . . . . . . . . . . . . . . . . . . . . . . . . . . . . . . . . Trap Hack Attempts . | . . . . . . . . . . . . . . . . . . . . . . . . . . . . . . . . . . . Triggered . | . . . . . . . . . . . . . . . . . . . . . . . . . . . . . . . . . . . Disarmed 6 | . . . 6 . . . . . . . . . . . . . . . . . . . . . . . . . . . . . . . Reprogrammed . | . . . . . . . . . . . . . . . . . . . . . . . . . . . . . . . . . . . Reused . | . . . . . . . . . . . . . . . . . . . . . . . . . . . . . . . . . . . Traps Extracted . | . . . . . . . . . . . . . . . . . . . . . . . . . . . . . . . . . . . Installed . | . . . . . . . . . . . . . . . . . . . . . . . . . . . . . . . . . . . Triggered 18 | . . . . . . . . . . . 1 . . . 2 . . . 15 . . . . . . . . . . . . . . . Machines | -11 -10 -10 -9 -9 -8 -7 -7 -7 -7 -6 -6 -6 -6 -6 -5 -5 -5 -5 -5 -4 -4 -4 -4 -4 -4 -4 -4 -3 -3 -2 -2 -2 -1 -1 ---------- Run | Scr Mat Min Mat Min Mat Fac Low Low Dat Pro Fac Low Low Zio Pro Fac Upp Upp War Pro Fac Was Fac Ext Cet Arc Hub Res Tes Res Qua Sec Acc Com Machines Disabled 152 | . 4 1 1 2 2 10 . . 1 . 5 . . . 4 46 . . . . 4 . 5 7 2 3 4 . 12 2 8 18 10 1 Max in Single Turn 12 | . 1 1 1 1 1 2 . . 1 . 4 . . . 4 12 . . . . 2 . . 2 1 1 1 . 1 1 1 1 3 1 Garrison Access 10 | . . . . . . . . . . . 3 . . . . 1 . . . . . . . . . . . 1 1 2 1 1 . . Network Hub 1 | . . . . . . . . . . . . . . . . . . . . . . . . . . . 1 . . . . . . . Machines Sabotaged . | . . . . . . . . . . . . . . . . . . . . . . . . . . . . . . . . . . . Garrisons Compromised 1 | . . . . . . . . . . . 1 . . . . . . . . . . . . . . . . . . . . . . . Overloaded Fab Kills . | . . . . . . . . . . . . . . . . . . . . . . . . . . . . . . . . . . . Fab Network Shutdowns 4 | . . . . . . 1 . . . . 1 . . . . . . . . . . . . . . . . 1 . 1 . . . . Hacking | -11 -10 -10 -9 -9 -8 -7 -7 -7 -7 -6 -6 -6 -6 -6 -5 -5 -5 -5 -5 -4 -4 -4 -4 -4 -4 -4 -4 -3 -3 -2 -2 -2 -1 -1 --------- Run | Scr Mat Min Mat Min Mat Fac Low Low Dat Pro Fac Low Low Zio Pro Fac Upp Upp War Pro Fac Was Fac Ext Cet Arc Hub Res Tes Res Qua Sec Acc Com Machines Accessed 148 | . 5 2 14 1 11 14 2 . 4 . 16 1 . . . 13 . . . . 3 . 2 8 1 . 2 8 7 2 13 13 2 4 Terminals 95 | . 3 2 10 1 8 9 . . . . 7 . . . . 8 . . . . 2 . 1 8 1 . 1 4 5 1 9 10 1 4 Fabricators 15 | . . . . . . 4 . . . . 3 . . . . 2 . . . . 1 . 1 . . . . 1 1 1 . . 1 . Repair Stations 12 | . 1 . 2 . 2 1 . . . . 2 . . . . 1 . . . . . . . . . . . . . . 2 1 . . Recycling Units 3 | . 1 . 1 . . . . . . . . . . . . 1 . . . . . . . . . . . . . . . . . . Scanalyzers 8 | . . . 1 . 1 . . . . . 2 . . . . . . . . . . . . . . . . 2 . . 1 1 . . Garrison Access 8 | . . . . . . . . . . . 2 . . . . 1 . . . . . . . . . . 1 1 1 . 1 1 . . Total Hacks 571 | . 14 7 50 3 48 37 6 . 27 . 43 1 . . . 31 . . . . 13 . 8 36 3 . 10 46 31 9 59 72 6 11 Successful 335 | . 9 2 33 1 37 26 6 . 27 . 33 1 . . . 21 . . . . 3 . 5 16 . . 2 19 13 6 34 36 2 3 Failed 235 | . 5 5 17 2 10 11 . . . . 10 . . . . 10 . . . . 10 . 3 20 3 . 8 27 18 3 25 36 4 8 Catastrophic 28 | . . . . . . . . . . . 1 . . . . 1 . . . . 1 . . 5 1 . 1 5 2 . 4 5 . 2 Database Lockouts 1 | . . . . . 1 . . . . . . . . . . . . . . . . . . . . . . . . . . . . . Manual 285 | . 8 5 34 3 33 20 . . . . 17 . . . . 14 . . 1 . 9 . 5 27 1 . 4 22 15 2 28 31 . 6 Terminals 388 | . 9 7 38 3 36 27 . . . . 19 . . . . 19 . . . . 11 . 6 36 3 . 7 27 23 5 48 50 3 11 Fabricators 46 | . . . . . . 8 . . . . 7 . . . . 7 . . . . 2 . 2 . . . . 8 5 4 . . 3 . Repair Stations 43 | . 4 . 7 . 9 2 . . . . 4 . . . . 3 . . . . . . . . . . . . . . 8 6 . . Recycling Units 3 | . 1 . 1 . . . . . . . . . . . . 1 . . . . . . . . . . . . . . . . . . Scanalyzers 39 | . . . 4 . 3 . . . . . 10 . . . . . . . . . . . . . . . . 9 . . 1 12 . . Garrison Access 18 | . . . . . . . . . . . 3 . . . . 1 . . . . . . . . . . 3 2 3 . 2 4 . . Terminal Hacks 176 | . 1 2 15 1 19 14 6 . 27 . 8 1 . . . 7 . . . . 1 . 3 13 . . 2 6 8 2 17 20 1 2 Record 17 | . . . . . . . 5 . 11 . . 1 . . . . . . . . . . . . . . . . . . . . . . Part Schematic 18 | . . . . . 1 2 . . 8 . 1 . . . . 2 . . . . . . . 2 . . . 1 . . 1 . . . Robot Schematic 5 | . . . . . . . . . 5 . . . . . . . . . . . . . . . . . . . . . . . . . Robot Analysis 1 | . . . . . . . . . . . . . . . . . . . . . . . . . . . . . . . 1 . . . Prototype ID Bank 5 | . . . . . . . . . 3 . 1 . . . . 1 . . . . . . . . . . . . . . . . . . Open Door 6 | . . . . . . . 1 . . . . . . . . . . . . . . . . 2 . . . . . . . 3 . . Level Access Points 3 | . . . . . 1 . . . . . . . . . . . . . . . . . . . . . . . 1 . . 1 . . Branch Access Points 7 | . . . 1 . 1 1 . . . . . . . . . 1 . . . . . . 1 . . . . . . 1 . . 1 . Machine Index 2 | . . . . . . . . . . . 1 . . . . . . . . . . . . . . . . . . 1 . . . . Terminal Index 9 | . . . 1 . 1 1 . . . . . . . . . . . . . . . . 1 1 . . . 1 . . 1 1 . 1 Fabricator Index 2 | . . . . . . 1 . . . . 1 . . . . . . . . . . . . . . . . . . . . . . . Repair Station Index 3 | . . . 1 . 1 . . . . . . . . . . . . . . . . . . . . . . . . . . 1 . . Alert Level 31 | . 1 . 4 . 5 3 . . . . 2 . . . . 1 . . . . . . 1 3 . . 1 . 2 . 4 4 . . Unreport Threat 28 | . . . 2 . 3 3 . . . . 1 . . . . 1 . . . . . . . 3 . . . 3 1 . 5 6 . . Locate Traps 3 | . . . . . . 1 . . . . . . . . . . . . . . . . . 1 . . . . . . 1 . . . Disarm Traps 1 | . . . 1 . . . . . . . . . . . . . . . . . . . . . . . . . . . . . . . Transport Status 2 | . . . 1 . . . . . . . . . . . . . . . . . . . . . . . . . . . . 1 . . Recall Investigation 2 | . . . . . . . . . . . . . . . . . . . . . . . . 1 . . . . 1 . . . . . Recall Extermination 1 | . . . . . . . . . . . 1 . . . . . . . . . . . . . . . . . . . . . . . Recall Assault 1 | . . . . . . . . . . . . . . . . . . . . . . . . . . . . 1 . . . . . . Hauler Manifests 9 | . . . 2 . 1 2 . . . . . . . . . 1 . . . . 1 . . . . . . . 1 . . 1 . . Zone Layout 19 | . . 2 2 1 5 . . . . . . . . . . . . . . . . . . . . . 1 . 2 . 4 2 . . Disengage Seal 1 | . . . . . . . . . . . . . . . . . . . . . . . . . . . . . . . . . . 1 Fabricator Hacks 25 | . . . . . . 7 . . . . 4 . . . . 5 . . . . . . 2 . . . . 2 2 2 . . 1 . Load Schematic 12 | . . . . . . 3 . . . . 2 . . . . 2 . . . . . . 1 . . . . 1 1 1 . . 1 . Build 13 | . . . . . . 4 . . . . 2 . . . . 3 . . . . . . 1 . . . . 1 1 1 . . . . Repair Station Hacks 36 | . 4 . 5 . 7 2 . . . . 4 . . . . 2 . . . . . . . . . . . . . . 8 4 . . Scan Component 19 | . 2 . 3 . 4 1 . . . . 2 . . . . 1 . . . . . . . . . . . . . . 4 2 . . Repair 17 | . 2 . 2 . 3 1 . . . . 2 . . . . 1 . . . . . . . . . . . . . . 4 2 . . Recycling Unit Hacks 1 | . . . . . . . . . . . . . . . . 1 . . . . . . . . . . . . . . . . . . Report Inventory 1 | . . . . . . . . . . . . . . . . 1 . . . . . . . . . . . . . . . . . . Scanalyzer 31 | . . . 4 . 3 . . . . . 10 . . . . . . . . . . . . . . . . 4 . . 1 9 . . Insert Component 15 | . . . 1 . 1 . . . . . 5 . . . . . . . . . . . . . . . . 2 . . 1 5 . . Analyze 16 | . . . 3 . 2 . . . . . 5 . . . . . . . . . . . . . . . . 2 . . . 4 . . Garrison Access Hacks 7 | . . . . . . . . . . . 2 . . . . 1 . . . . . . . . . . . 1 1 . 1 1 . . Seal Access 7 | . . . . . . . . . . . 2 . . . . 1 . . . . . . . . . . . 1 1 . 1 1 . . Unauthorized Hacks 59 | . 4 . 9 . 8 3 . . . . 5 . . . . 5 . . . . 2 . . 3 . . . 6 2 2 7 2 . 1 Terminals 50 | . 3 . 8 . 8 3 . . . . 4 . . . . 5 . . . . 2 . . 3 . . . 2 2 . 7 2 . 1 Track 2 | . . . . . 1 . . . . . . . . . . . . . . . . . . . . . . . . . . 1 . . Assimilate 3 | . . . 1 . . . . . . . . . . . . . . . . . . . . . . . . . . . 2 . . . Botnet 42 | . 3 . 6 . 6 3 . . . . 4 . . . . 5 . . . . 2 . . 3 . . . 2 2 . 4 1 . 1 Disrupt 1 | . . . . . . . . . . . . . . . . . . . . . . . . . . . . . . . 1 . . . Operators 2 | . . . 1 . 1 . . . . . . . . . . . . . . . . . . . . . . . . . . . . . Fabricators 7 | . . . . . . . . . . . 1 . . . . . . . . . . . . . . . . 4 . 2 . . . . Report 1 | . . . . . . . . . . . . . . . . . . . . . . . . . . . . 1 . . . . . . Prioritize 2 | . . . . . . . . . . . . . . . . . . . . . . . . . . . . 1 . 1 . . . . Siphon 2 | . . . . . . . . . . . . . . . . . . . . . . . . . . . . 1 . 1 . . . . Haulers 2 | . . . . . . . . . . . 1 . . . . . . . . . . . . . . . . 1 . . . . . . Repair Stations . | . . . . . . . . . . . . . . . . . . . . . . . . . . . . . . . . . . . Recycling Units 2 | . 1 . 1 . . . . . . . . . . . . . . . . . . . . . . . . . . . . . . . Tunnel 2 | . 1 . 1 . . . . . . . . . . . . . . . . . . . . . . . . . . . . . . . Scanalyzers . | . . . . . . . . . . . . . . . . . . . . . . . . . . . . . . . . . . . Garrison Access . | . . . . . . . . . . . . . . . . . . . . . . . . . . . . . . . . . . . Data Cores Recovered 3 | . . . . . 1 1 . . . . . . . . . . . . . . 1 . . . . . . . . . . . . . Used 1 | . . . . . 1 . . . . . . . . . . . . . . . . . . . . . . . . . . . . . Hacking Detections 125 | . 4 2 12 1 11 13 . . . . 14 . . . . 11 . . . . 3 . 2 7 1 . 2 6 6 2 13 10 2 3 Full Trace Events 17 | . . 1 2 . 2 1 . . . . 1 . . . . 1 . . . . 1 . . 1 . . 1 2 1 . . 2 1 . Feedback Events 3 | . . . . . . . . . . . . . . . . . . . . . . . . . . . . 1 . . . 2 . . Corruption 2 | . . . . . . . . . . . . . . . . . . . . . . . . . . . . 1 . . . 1 . . Hackware Fried 1 | . . . . . . . . . . . . . . . . . . . . . . . . . . . . . . . . 1 . . Feedback Blocked . | . . . . . . . . . . . . . . . . . . . . . . . . . . . . . . . . . . . Robot Schematics Acquired 5 | . . . . . . . . . 5 . . . . . . . . . . . . . . . . . . . . . . . . . Robots Built . | . . . . . . . . . . . . . . . . . . . . . . . . . . . . . . . . . . . Matter . | . . . . . . . . . . . . . . . . . . . . . . . . . . . . . . . . . . . Time . | . . . . . . . . . . . . . . . . . . . . . . . . . . . . . . . . . . . Total Robot Build Rating . | . . . . . . . . . . . . . . . . . . . . . . . . . . . . . . . . . . . Part Schematics Acquired 28 | . . . 1 . 2 2 . . 8 . 5 . . . . 2 . . . . . . . 2 . . . 3 . . 1 2 . . Parts Built 24 | . . . . . . 8 . . . . 4 . . . . 6 . . . . . . 1 . . . . 1 2 2 . . . . Matter 2895 | . . . . . . 716 . . . . 380 . . . . 702 . . . . . . 234 . . . . 351 256 256 . . . . Time 990 | . . . . . . 274 . . . . 62 . . . . 303 . . . . . . 58 . . . . 187 42 64 . . . . Total Part Build Rating 144 | . . . . . . 36 . . . . 20 . . . . 42 . . . . . . 7 . . . . 7 16 16 . . . . Parts Repaired 17 | . 2 . 2 . 3 1 . . . . 2 . . . . 1 . . . . . . . . . . . . . . 4 2 . . Time 682 | . 52 . 45 . 181 44 . . . . 30 . . . . 22 . . . . . . . . . . . . . . 240 68 . . Parts Recycled . | . . . . . . . . . . . . . . . . . . . . . . . . . . . . . . . . . . . Recycled Matter . | . . . . . . . . . . . . . . . . . . . . . . . . . . . . . . . . . . . Retrieved Matter . | . . . . . . . . . . . . . . . . . . . . . . . . . . . . . . . . . . . Retrieved Components . | . . . . . . . . . . . . . . . . . . . . . . . . . . . . . . . . . . . Parts Scanalyzed 11 | . . . 1 . 1 . . . . . 4 . . . . . . . . . . . . . . . . 2 . . . 3 . . Part Schematics Acquired 10 | . . . 1 . 1 . . . . . 4 . . . . . . . . . . . . . . . . 2 . . . 2 . . Parts Damaged 1 | . . . . . 1 . . . . . . . . . . . . . . . . . . . . . . . . . . . . . Bothacking | -11 -10 -10 -9 -9 -8 -7 -7 -7 -7 -6 -6 -6 -6 -6 -5 -5 -5 -5 -5 -4 -4 -4 -4 -4 -4 -4 -4 -3 -3 -2 -2 -2 -1 -1 ------------ Run | Scr Mat Min Mat Min Mat Fac Low Low Dat Pro Fac Low Low Zio Pro Fac Upp Upp War Pro Fac Was Fac Ext Cet Arc Hub Res Tes Res Qua Sec Acc Com Used RIF Installer . | . . . . . . . . . . . . . . . . . . . . . . . . . . . . . . . . . . . Robots Hacked . | . . . . . . . . . . . . . . . . . . . . . . . . . . . . . . . . . . . Non-combat . | . . . . . . . . . . . . . . . . . . . . . . . . . . . . . . . . . . . Combat . | . . . . . . . . . . . . . . . . . . . . . . . . . . . . . . . . . . . Robot Hacks Applied . | . . . . . . . . . . . . . . . . . . . . . . . . . . . . . . . . . . . Relay Couplers Released 6 | . . . . . . 4 . . . . . . . . . . . . . . . . . . . . . . . 2 . . . . Machine Destruction 2 | . . . . . . . . . . . . . . . . . . . . . . . . . . . . . . 2 . . . . Programmers 4 | . . . . . . 4 . . . . . . . . . . . . . . . . . . . . . . . . . . . . Robots Rewired 14 | . . . . . . 1 . . . . . . . . . . . . . . . . . 13 . . . . . . . . . . Allies Hacked 1 | . . . . . . . . . . . . . . . . . . . . . . . . . . . . . . . 1 . . . Hacks Repelled . | . . . . . . . . . . . . . . . . . . . . . . . . . . . . . . . . . . . Allies | -11 -10 -10 -9 -9 -8 -7 -7 -7 -7 -6 -6 -6 -6 -6 -5 -5 -5 -5 -5 -4 -4 -4 -4 -4 -4 -4 -4 -3 -3 -2 -2 -2 -1 -1 -------- Run | Scr Mat Min Mat Min Mat Fac Low Low Dat Pro Fac Low Low Zio Pro Fac Upp Upp War Pro Fac Was Fac Ext Cet Arc Hub Res Tes Res Qua Sec Acc Com Total Allies 55 | . . 3 1 . . 1 2 . . . 6 . . . . . . . . . . 19 . 16 5 . . . . . 2 . . . Largest Group 19 | . . 3 1 1 . 1 2 . . . 6 . . . . . . . . . . 19 19 18 15 2 2 . . . 1 . . . Highest-Rated Group 900 | . . 40 10 10 . 12 51 . . . 251 . . . . . . . . . . 714 714 723 900 190 190 . . . 26 . . . Highest-Rated Ally 156 | . . 16 10 10 . 12 31 . . . 74 . . . . . . . . . . 50 50 156 156 95 95 . . . 26 . . . Total Orders 3 | . . . . . . . . . . . . . . . . . . . . . . . . . 3 . . . . . . . . . STAY 2 | . . . . . . . . . . . . . . . . . . . . . . . . . 2 . . . . . . . . . FOLLOW 1 | . . . . . . . . . . . . . . . . . . . . . . . . . 1 . . . . . . . . . Ally Attacks 404 | . . 14 . . . 4 . . . . . . . . . . . . . . . . 47 191 125 8 15 . . . . . . . Total Damage 12329 | . . 132 . . . 31 . . . . . . . . . . . . . . . . 1677 6211 3616 246 416 . . . . . . . Kills 54 | . . 4 . . . . . . . . . . . . . . . . . . . . 10 21 16 1 2 . . . . . . . Allies Corrupted 1 | . . . . . . . . . . . . . . . . . . . . . . . 1 . . . . . . . . . . . Allies Melted . | . . . . . . . . . . . . . . . . . . . . . . . . . . . . . . . . . . . Intel | -11 -10 -10 -9 -9 -8 -7 -7 -7 -7 -6 -6 -6 -6 -6 -5 -5 -5 -5 -5 -4 -4 -4 -4 -4 -4 -4 -4 -3 -3 -2 -2 -2 -1 -1 ------- Run | Scr Mat Min Mat Min Mat Fac Low Low Dat Pro Fac Low Low Zio Pro Fac Upp Upp War Pro Fac Was Fac Ext Cet Arc Hub Res Tes Res Qua Sec Acc Com Robot Analysis Total 1 | . . . . . . . . . . . . . . . . . . . . . . . . . . . . . . . 1 . . . Derelict Logs Recovered 13 | . . 1 . 1 . . 1 1 . 2 . 2 2 1 1 . . . . 1 . . . . . . . . . . . . . . Drone Launches . | . . . . . . . . . . . . . . . . . . . . . . . . . . . . . . . . . . . Drone Recoveries . | . . . . . . . . . . . . . . . . . . . . . . . . . . . . . . . . . . . Exploration | -11 -10 -10 -9 -9 -8 -7 -7 -7 -7 -6 -6 -6 -6 -6 -5 -5 -5 -5 -5 -4 -4 -4 -4 -4 -4 -4 -4 -3 -3 -2 -2 -2 -1 -1 ------------- Run | Scr Mat Min Mat Min Mat Fac Low Low Dat Pro Fac Low Low Zio Pro Fac Upp Upp War Pro Fac Was Fac Ext Cet Arc Hub Res Tes Res Qua Sec Acc Com Turns Passed 55315 | 78 1707 1106 2806 2935 2460 4374 743 650 519 1093 3868 1299 1113 2281 1057 2878 1072 405 1234 693 334 736 590 1162 505 363 552 1652 2222 792 3671 4655 2203 1507 Spaces Moved 19726 | 44 822 634 1152 755 788 1364 283 219 155 401 1240 461 425 915 328 994 396 232 509 276 152 394 184 556 197 143 239 651 1013 278 1106 1373 652 395 Core 9 | 9 . . . . . . . . . . . . . . . . . . . . . . . . . . . . . . . . . . Treads 19418 | 35 822 634 1152 755 788 1364 283 219 155 401 1240 461 425 915 328 994 396 232 509 276 152 394 184 556 197 143 239 651 1013 278 1106 1219 507 395 Legs . | . . . . . . . . . . . . . . . . . . . . . . . . . . . . . . . . . . . Wheels . | . . . . . . . . . . . . . . . . . . . . . . . . . . . . . . . . . . . Hover . | . . . . . . . . . . . . . . . . . . . . . . . . . . . . . . . . . . . Flight . | . . . . . . . . . . . . . . . . . . . . . . . . . . . . . . . . . . . Fastest Speed 50 | 50 160 160 145 145 245 250 255 255 255 255 156 260 260 160 260 163 170 170 170 160 160 160 160 160 160 160 160 160 165 265 152 160 260 260 Average Speed 223 | 152 160 160 189 343 246 253 256 255 255 255 259 260 260 247 260 197 217 170 203 199 160 160 160 160 160 160 160 163 165 265 251 253 260 260 Slowest Speed 345 | 200 160 160 260 345 250 260 260 255 255 255 260 260 260 260 260 270 270 170 266 266 160 160 160 160 160 160 160 165 165 265 345 260 260 260 Overloaded Moves . | . . . . . . . . . . . . . . . . . . . . . . . . . . . . . . . . . . . Propulsion Burnouts . | . . . . . . . . . . . . . . . . . . . . . . . . . . . . . . . . . . . Robots Hopped . | . . . . . . . . . . . . . . . . . . . . . . . . . . . . . . . . . . . Cave-ins Triggered 1 | . . . . . . . . 1 . . . . . . . . . . . . . . . . . . . . . . . . . . Teleports 3 | . . . . . . . . . . . . . . . . . . . . . . . . . . . . . . . . . 3 . Spacefolds 2 | . . . . . . . . . . . . . . . . . . . . . . . . . . . . . . . . 2 . . Microwarps 27 | . . . . . . . . . . . . . . . . . . . . . . . . . . . . . . . . 11 16 . Exploration Rate (%) 55 | 4 97 98 94 98 78 32 51 36 80 57 28 66 63 83 58 28 61 41 58 47 4 96 6 86 56 74 32 14 78 19 91 73 25 18 Regions Visited 34 Branch Regions 22 Pre-discovered Areas 6 | . 1 . 1 1 . . . . 1 . . 1 . . . . . . . 1 . . . . . . . . . . . . . . Known Exits Taken 25 | . . . 1 . 1 1 1 1 1 1 1 . . . 1 1 1 1 1 1 . . 1 1 1 1 1 1 1 1 1 1 1 . Unknown Exits Taken 7 | 1 1 1 . 1 . . . . . . . 1 1 1 . . . . . . . . . . . . . . . . . . . . Scrap Searched 27 | . . 1 . 2 . . 1 2 . 5 . 1 3 3 . . 3 2 . 4 . . . . . . . . . . . . . . Spaces Dug 132 | . . . . . . 37 . 8 . 3 5 1 . . 4 26 3 . . . . 16 . . . . 10 . 10 . . 4 3 2 Terrain Destroyed 1078 | . . . 2 . . 64 . 30 . 40 39 29 . . 44 203 7 2 5 13 56 23 . 36 30 6 179 7 25 . 11 119 93 15 Melee 23 | . . . . . . 6 . 5 . 3 5 . . . . 1 . . . . . . . . . . . . 3 . . . . . Projectile 370 | . . . 2 . . 14 . 7 . . 4 . . . . 4 . 2 3 12 24 23 . 36 30 6 26 3 20 . 7 92 55 . AOE 553 | . . . . . . 43 . 18 . 37 23 26 . . 33 169 . . . . 32 . . . . . 153 . . . . . 19 . Terrain Rammed . | . . . . . . . . . . . . . . . . . . . . . . . . . . . . . . . . . . . Walls Destroyed . | . . . . . . . . . . . . . . . . . . . . . . . . . . . . . . . . . . . Machines Disabled . | . . . . . . . . . . . . . . . . . . . . . . . . . . . . . . . . . . . Actions | -11 -10 -10 -9 -9 -8 -7 -7 -7 -7 -6 -6 -6 -6 -6 -5 -5 -5 -5 -5 -4 -4 -4 -4 -4 -4 -4 -4 -3 -3 -2 -2 -2 -1 -1 --------- Run | Scr Mat Min Mat Min Mat Fac Low Low Dat Pro Fac Low Low Zio Pro Fac Upp Upp War Pro Fac Was Fac Ext Cet Arc Hub Res Tes Res Qua Sec Acc Com Total 27768 | 52 1069 689 1582 1070 1204 1952 293 275 228 452 1680 507 433 932 480 1625 521 239 674 372 223 477 483 781 347 268 360 1122 1405 319 1754 2255 913 732 Wait 5215 | . 131 25 229 288 262 293 3 24 19 26 236 6 1 . 123 382 46 1 100 33 47 41 292 86 83 110 93 382 217 5 506 705 153 267 Move 19425 | 43 821 633 1151 754 787 1363 282 218 154 400 1239 460 424 914 327 994 395 231 508 275 152 393 183 555 196 142 238 650 1012 277 1105 1232 522 395 Hop . | . . . . . . . . . . . . . . . . . . . . . . . . . . . . . . . . . . . Pick Up 272 | 2 17 3 22 2 23 29 1 1 6 1 24 3 2 3 . 16 4 2 14 3 5 7 3 2 10 1 . 8 11 7 4 23 9 4 Fast Attach 138 | 6 5 1 13 . 2 8 . . 1 . 8 . 1 5 . 7 . 2 5 5 1 4 . . 3 4 . 4 14 2 12 21 2 2 Attach 135 | . 2 . 2 . 3 9 1 2 4 1 19 2 1 2 1 9 18 . 4 9 3 1 . . 1 . . 7 3 4 3 12 8 4 Detach 35 | . 1 . . . . . . . 2 . 1 1 1 2 . 3 5 . 4 6 1 1 . . . . . . 1 . 3 3 . . Swap 313 | . 5 1 22 1 6 50 3 6 9 8 33 6 . . 3 37 3 . 1 7 . 1 1 2 14 . 5 9 31 5 10 16 15 3 Drop 281 | . 8 4 44 1 14 26 . . 6 2 18 2 2 6 . 21 1 1 8 6 . 12 4 1 15 5 . 7 25 7 6 23 6 . Fire 1671 | . 70 20 91 21 104 149 3 18 16 7 81 22 1 . 26 151 28 2 28 21 13 17 . 28 25 6 23 53 82 12 96 216 187 54 Melee 87 | . . . . . . 14 . 6 11 7 9 . . . . 1 21 . . 7 . . . . . . . . 6 . . 2 2 1 Ram . | . . . . . . . . . . . . . . . . . . . . . . . . . . . . . . . . . . . Kick . | . . . . . . . . . . . . . . . . . . . . . . . . . . . . . . . . . . . Crush 85 | 1 9 2 8 3 3 10 . . . . 8 5 . . . 4 . . . . 1 . . 3 . . 1 2 3 . 9 2 9 2 Escape Stasis 4 | . . . . . . . . . . . 4 . . . . . . . . . . . . . . . . . . . . . . . Rewire 107 | . . . . . . 1 . . . . . . . . . . . . 2 . . . . 104 . . . . . . . . . . Trap . | . . . . . . . . . . . . . . . . . . . . . . . . . . . . . . . . . . . Miscellaneous . | . . . . . . . . . . . . . . . . . . . . . . . . . . . . . . . . . . . Route ------- -11/Scrapyard -10/Materials (discovered 5 exits: *Mat x3 / *Min x2) -10/Mines (discovered 2 exits: *Mat x2) -9/Materials (discovered 3 exits: *Mat x2 / *Min) -9/Mines (discovered 2 exits: *Mat x2) -8/Materials (discovered 3 exits: *Fac x3) -7/Factory (discovered 4 exits: *Fac / Sto / *Low x2) -7/Lower Caves -7/Lower Caves -7/Data Miner -6/Proximity Caves -6/Factory (discovered 3 exits: *Fac / *Low x2) -6/Lower Caves -6/Lower Caves -6/Zion -5/Proximity Caves -5/Factory (discovered 3 exits: *Fac / *Upp x2) -5/Upper Caves -5/Upper Caves -5/Warlord -4/Proximity Caves -4/Factory -4/Waste -4/Factory (discovered 4 exits: Upp x2 / *Ext x2) -4/Extension (discovered 2 exits: *Res / *Cet) -4/Cetus (discovered 2 exits: *Res / *Arc) -4/Archives (discovered 2 exits: *Hub x2) -4/Hub_04(d) -3/Research (discovered 2 exits: *Arm / *Tes) -3/Testing -2/Research (discovered 2 exits: *Qua x2) -2/Quarantine (discovered 2 exits: *Acc / *Sec) -2/Section 7 -1/Access -1/Command History --------- Turn | Location | Event 12 | -11/Scrapyard | Discovered new exit (range 15) 79 | -11/Scrapyard | Entered Materials 246 | -10/Materials | Discovered new exit (range 15) 306 | -10/Materials | Build established: Mutant 489 | -10/Materials | Discovered new exit (range 9) 509 | -10/Materials | Discovered new exit (range 11) 1095 | -10/Materials | Discovered new exit (range 14) 1176 | -10/Materials | Core integrity fell below 50% 1309 | -10/Materials | Discovered new exit (range 15) 1593 | -10/Materials | Repaired Lgt. Treads 1620 | -10/Materials | Repaired Lgt. Treads 1786 | -10/Materials | Entered Mines 1799 | -10/Mines | Discovered new exit (range 3) 1834 | -10/Mines | Assisted by bots powering up and referring to "LRC-V3" 1899 | -10/Mines | Learned 2 Materials zone layouts 2335 | -10/Mines | Discovered new exit (range 8) 2892 | -10/Mines | Entered Materials 2892 | -9/Materials | Evolved 2 slots: Utility x1, Weapon x1 2893 | -9/Materials | Identified exit to Mines 3433 | -9/Materials | Build established: Tank 3555 | -9/Materials | Discovered new exit (range 16) 4010 | -9/Materials | Repaired Imp. Treads 4216 | -9/Materials | Discovered new exit (range 15) 4342 | -9/Materials | Repaired Lgt. Cannon 5698 | -9/Materials | Entered Mines 5698 | -9/Mines | Accompanied by 1 ally 5706 | -9/Mines | Met a Derelict bent on vengeance 5832 | -9/Mines | Received a Rocket Launcher from a helpful Derelict 5897 | -9/Mines | Learned location of Zion (-6) 6294 | -9/Mines | Discovered new exit (range 7) 7522 | -9/Mines | Discovered new exit (range 5) 8633 | -9/Mines | Entered Materials 8633 | -8/Materials | Evolved 2 slots: Propulsion x1, Utility x1 9220 | -8/Materials | Discovered new exit (range 20) 10052 | -8/Materials | Identified exit to Factory 10052 | -8/Materials | Central database locked down 10366 | -8/Materials | Repaired Broken Gauss Rifle? 10446 | -8/Materials | Repaired Enh. Autogun 10715 | -8/Materials | Repaired Enh. Autogun 11093 | -8/Materials | Entered Factory 11093 | -7/Factory | Evolved 2 slots: Utility x2 11641 | -7/Factory | Build established: Hacker-Skirmisher 12121 | -7/Factory | Fabricated Gauss Rifle (x2) 12455 | -7/Factory | Discovered new exit (range 15) 12525 | -7/Factory | Identified exit to Factory 12661 | -7/Factory | Identified exit to Storage 12661 | -7/Factory | Identified exit to Lower Caves 13655 | -7/Factory | Repaired Gauss Rifle 13755 | -7/Factory | Build established: Hacker-Mutant 14297 | -7/Factory | Fabricated Gauss Rifle (x2) 14866 | -7/Factory | Build established: Hacker-Skirmisher 14878 | -7/Factory | Fabricated Hyp. Gauss Rifle? 15023 | -7/Factory | Fabricated Hyp. Gauss Rifle (x2) 15222 | -7/Factory | Local fabrication network quarantined 15374 | -7/Factory | Garrison activated, responded to threat 15467 | -7/Factory | Entered Lower Caves 15468 | -7/Lower Caves | Encountered a Warlord checkpoint 15688 | -7/Lower Caves | Core integrity fell below 50% 15904 | -7/Lower Caves | A Commander dispatched an escort 15935 | -7/Lower Caves | Learned Armory trap positions 15935 | -7/Lower Caves | Learned Factory stockpile data 15935 | -7/Lower Caves | Learned Factory terminal intel 16114 | -7/Lower Caves | Learned Factory garrison access intel 16152 | -7/Lower Caves | Discovered new exit (range 9) 16167 | -7/Lower Caves | Identified exit to Lower Caves 16210 | -7/Lower Caves | Entered another Lower Caves area 16210 | -7/Lower Caves | Accompanied by 2 allies 16211 | -7/Lower Caves | Commander's escort returned to base 16211 | -7/Lower Caves | Commander's escort returned to base 16426 | -7/Lower Caves | Attacked by a delusional Derelict stockpiling parts 16527 | -7/Lower Caves | Learned 8 Factory zone layouts 16649 | -7/Lower Caves | Crushed by falling debris 16809 | -7/Lower Caves | Discovered new exit (range 5) 16821 | -7/Lower Caves | Identified exit to Data Miner 16860 | -7/Lower Caves | Entered Data Miner 16864 | -7/Data Miner | Discovered new exit (range 6) 16912 | -7/Data Miner | Met Data Miner 16941 | -7/Data Miner | Build established: Hacker-Mutant 16963 | -7/Data Miner | Learned location of Section 7 (-2) 16963 | -7/Data Miner | Acquired the access code to Warlord's prototype stash 17002 | -7/Data Miner | Received God Mode back door access code from Data Miner 17040 | -7/Data Miner | Data Conduit disabled 17374 | -7/Data Miner | Identified exit to Proximity Caves 17379 | -7/Data Miner | Entered Proximity Caves 17673 | -6/Proximity Caves | Build established: Hacker-Skirmisher 17725 | -6/Proximity Caves | Learned 4 Factory zone layouts 18086 | -6/Proximity Caves | Spotted B-75 Beast 18103 | -6/Proximity Caves | Build established: Hacker-Mutant 18406 | -6/Proximity Caves | Discovered exit to Factory (range 3) 18472 | -6/Proximity Caves | Entered Factory 18472 | -6/Factory | Evolved 2 slots: Propulsion x1, Utility x1 18473 | -6/Factory | Identified exit to Lower Caves 18475 | -6/Factory | Loaded intel: 19 terminal locations 18476 | -6/Factory | Loaded intel: 4 garrison access locations 18610 | -6/Factory | Build established: Hacker-Skirmisher 18969 | -6/Factory | Build established: Hacker-Mutant 19125 | -6/Factory | Cargo convoy interrupted 19193 | -6/Factory | Lost 7 parts (1p4n1u1w) 19468 | -6/Factory | Discovered exit to Lower Caves (range 3) 19940 | -6/Factory | Repaired Lgt. Treads 20260 | -6/Factory | Repaired Gauss Rifle 20803 | -6/Factory | Build established: Scavenger-Skirmisher 20811 | -6/Factory | Discovered new exit (range 5) 20824 | -6/Factory | Identified exit to Factory 21388 | -6/Factory | Fabricated Hyp. Gauss Rifle (x2) 21424 | -6/Factory | Fabricated Hyp. Gauss Rifle (x2) 21658 | -6/Factory | Local fabrication network quarantined 21972 | -6/Factory | First assault squad dispatched 21992 | -6/Factory | Build established: Hacker-Skirmisher 22022 | -6/Factory | System corruption reached 10% 22070 | -6/Factory | Lost 7 parts (1n5u1w) 22310 | -6/Factory | Build established: Scavenger-Tank 22340 | -6/Factory | Entered Lower Caves 22447 | -6/Lower Caves | Learned location of Extension (-4) 23072 | -6/Lower Caves | Learned Factory interactive machine intel 23387 | -6/Lower Caves | Discovered new exit (range 14) 23639 | -6/Lower Caves | Entered another Lower Caves area 23666 | -6/Lower Caves | Learned Factory security intel 23807 | -6/Lower Caves | Learned Factory terminal intel 24116 | -6/Lower Caves | Spotted B-75 Beast 24345 | -6/Lower Caves | Discovered new exit (range 16) 24408 | -6/Lower Caves | Encountered a Warlord checkpoint 24752 | -6/Lower Caves | Entered Zion 24820 | -6/Zion | System corruption cleaned by Quarantine Array 24911 | -6/Zion | Given the Hacking Drone Bay 25212 | -6/Zion | Found CR-A16's Pointy Stick 25763 | -6/Zion | Learned Factory scanalyzer intel 25849 | -6/Zion | Learned Factory emergency access door positions 26992 | -6/Zion | Discovered new exit (range 16) 27033 | -6/Zion | Entered Proximity Caves 27055 | -5/Proximity Caves | Learned Factory terminal intel 27366 | -5/Proximity Caves | Spotted B-75 Beast 28023 | -5/Proximity Caves | Discovered exit to Factory (range 12) 28090 | -5/Proximity Caves | Entered Factory 28090 | -5/Factory | Evolved 2 slots: Utility x2 28091 | -5/Factory | Identified exit to Upper Caves 28094 | -5/Factory | Loaded intel: 46 interactive machine locations 28095 | -5/Factory | Loaded intel: 20 terminal locations 28096 | -5/Factory | Loaded intel: 4 scanalyzer locations 28230 | -5/Factory | Repaired Med. Treads 28546 | -5/Factory | Build established: Scavenger-Gunner 29097 | -5/Factory | Discovered new exit (range 12) 29201 | -5/Factory | Fabricated Adv. Signal Interpreter? 29352 | -5/Factory | Build established: Hacker-Skirmisher 30402 | -5/Factory | Fabricated Arm. Heavy Treads (x2) 30490 | -5/Factory | First assault squad dispatched 30534 | -5/Factory | Fabricated Arm. Heavy Treads? 30738 | -5/Factory | High security lockdown imminent 30818 | -5/Factory | High security lockdown engaged 30942 | -5/Factory | Lost 4 parts (2u2w) 30968 | -5/Factory | Entered Upper Caves 31586 | -5/Upper Caves | Lost 5 parts (2n2u1w) 31623 | -5/Upper Caves | Spotted B-75 Beast 31797 | -5/Upper Caves | Lost 3 parts (1p2u) 31811 | -5/Upper Caves | Destroyed B-75 Beast 31921 | -5/Upper Caves | Discovered new exit (range 9) 31933 | -5/Upper Caves | Identified exit to Upper Caves 32040 | -5/Upper Caves | Entered another Upper Caves area 32117 | -5/Upper Caves | Build established: Machinist-Gunner 32428 | -5/Upper Caves | Discovered new exit (range 9) 32443 | -5/Upper Caves | Identified exit to Warlord 32445 | -5/Upper Caves | Entered Warlord 32502 | -5/Warlord | System corruption cleaned by Quarantine Array 32760 | -5/Warlord | Met Warlord 32775 | -5/Warlord | Opened Warlord's prototype stash 32780 | -5/Warlord | Found Prototype Reactor 32784 | -5/Warlord | Warlord's base attacked by MAIN.C 32787 | -5/Warlord | Found Prototype Processor 32787 | -5/Warlord | Identified Exp. Targeting Computer 32795 | -5/Warlord | Found Prototype Processor 32795 | -5/Warlord | Identified Exp. Target Analyzer 32799 | -5/Warlord | Found Prototype Device 32799 | -5/Warlord | Identified Thermal Barrier 33043 | -5/Warlord | Warlord forces counterattacked 33106 | -5/Warlord | Spotted Executioner 33106 | -5/Warlord | Spotted Striker 33161 | -5/Warlord | Discovered new exit (range 15) 33190 | -5/Warlord | Destroyed Striker 33388 | -5/Warlord | Spotted Executioner 33389 | -5/Warlord | P-80 Master assimilated allied Q6-M3C(g) 33389 | -5/Warlord | Spotted Q6-M3C(g) 33391 | -5/Warlord | Destroyed Executioner 33392 | -5/Warlord | Spotted Executioner 33396 | -5/Warlord | P-70 Sage assimilated allied YU-JCR(g) 33396 | -5/Warlord | Destroyed Executioner 33406 | -5/Warlord | Build established: Scavenger-Gunner 33422 | -5/Warlord | Destroyed 8 combat bots 33459 | -5/Warlord | Warlord base infiltrated, sounded retreat 33528 | -5/Warlord | Spotted Executioner 33535 | -5/Warlord | Destroyed Executioner 33668 | -5/Warlord | Found Exp. Targeting Computer 33677 | -5/Warlord | Identified exit to Proximity Caves 33679 | -5/Warlord | Entered Proximity Caves 33934 | -4/Proximity Caves | Spotted B-86 Titan 33999 | -4/Proximity Caves | Revealed the true nature of CR-A16's Pointy Stick 34002 | -4/Proximity Caves | Destroyed B-86 Titan 34234 | -4/Proximity Caves | Attracted the attention of an 0b10 base 34289 | -4/Proximity Caves | Lost 4 parts (1u3w) 34327 | -4/Proximity Caves | Discovered new exit (range 7) 34335 | -4/Proximity Caves | Identified exit to Factory 34372 | -4/Proximity Caves | Entered Factory 34372 | -4/Factory | Evolved 2 slots: Utility x2 34373 | -4/Factory | Loaded intel: 21 terminal locations 34706 | -4/Factory | Sucked down chute 34706 | -4/Factory | Entered Waste 34792 | -4/Waste | Destroyed C-40 Crusher 34807 | -4/Waste | Destroyed C-40 Crusher 34837 | -4/Waste | Spotted C-40 Crusher 34837 | -4/Waste | Destroyed C-40 Crusher 34853 | -4/Waste | Destroyed C-40 Crusher 34863 | -4/Waste | Spotted C-40 Crusher 34866 | -4/Waste | Destroyed C-40 Crusher 34908 | -4/Waste | Destroyed C-40 Crusher 35042 | -4/Waste | Discovered new exit (range 14) 35241 | -4/Waste | Warlord forces began an assault 35249 | -4/Waste | Found Prototype Device 35249 | -4/Waste | Identified Exp. Cloaking Device 35431 | -4/Waste | Identified exit to Factory 35442 | -4/Waste | Entered Factory 35442 | -4/Factory | Accompanied by 19 allies 35550 | -4/Factory | Fabricated Lrn. Sensor Array (x1) 35699 | -4/Factory | Identified exit to Upper Caves 35699 | -4/Factory | Identified exit to Extension 36032 | -4/Factory | Entered Extension 36032 | -4/Extension | Accompanied by 18 allies 36184 | -4/Extension | Destroyed B-86 Titan 36207 | -4/Extension | Destroyed B-86 Titan 36329 | -4/Extension | Rescued A7 37070 | -4/Extension | Rescued a captive Derelict 37114 | -4/Extension | Rescued a captive Derelict 37155 | -4/Extension | Discovered new exit (range 10) 37157 | -4/Extension | Discovered new exit (range 6) 37165 | -4/Extension | Identified exit to Cetus 37189 | -4/Extension | Build established: Commander-Gunner 37194 | -4/Extension | Entered Cetus 37194 | -4/Cetus | Accompanied by 15 allies (A7) 37199 | -4/Cetus | Acquired a Cetus Manufacturing Module code from A7 37224 | -4/Cetus | Spotted Cetus Guard 37225 | -4/Cetus | Allies destroyed Cetus Guard 37229 | -4/Cetus | Spotted Cetus Guard 37235 | -4/Cetus | Destroyed Cetus Guard 37351 | -4/Cetus | Started Cetus Manufacturing Module 37376 | -4/Cetus | Manufactured an Enhanced Grunt 37401 | -4/Cetus | Manufactured an Enhanced Grunt 37426 | -4/Cetus | Manufactured an Enhanced Grunt 37441 | -4/Cetus | Discovered new exit (range 15) 37451 | -4/Cetus | Manufactured an Enhanced Grunt 37467 | -4/Cetus | Spotted Cetus Guard 37467 | -4/Cetus | Spotted Cetus Guard 37473 | -4/Cetus | Spotted Cetus Guard 37476 | -4/Cetus | Manufactured an Enhanced Grunt 37477 | -4/Cetus | Allies destroyed Cetus Guard 37477 | -4/Cetus | Spotted Cetus Guard 37480 | -4/Cetus | Destroyed Cetus Guard 37489 | -4/Cetus | Allies destroyed Cetus Guard 37489 | -4/Cetus | Destroyed Cetus Guard 37507 | -4/Cetus | Discovered new exit (range 15) 37519 | -4/Cetus | Met Revision 17 37523 | -4/Cetus | Destroyed Revision 17 37662 | -4/Cetus | Destroyed A7 37667 | -4/Cetus | Found Prototype Protection 37668 | -4/Cetus | Identified Med. Regenerative Plating 37671 | -4/Cetus | Extracted ID and sensor layout for unrecognized location from A7's data core 37691 | -4/Cetus | Identified exit to Archives 37699 | -4/Cetus | Entered Archives 37699 | -4/Archives | Accompanied by 2 allies 37841 | -4/Archives | Build established: Scavenger-Gunner 37841 | -4/Archives | Discovered new exit (range 16) 37858 | -4/Archives | Discovered new exit (range 13) 38048 | -4/Archives | Identified exit to Hub_04(d) 38062 | -4/Archives | Entered Hub_04(d) 38062 | -4/Hub_04(d) | Accompanied by 2 allies 38275 | -4/Hub_04(d) | Garrison activated, responded to threat 38429 | -4/Hub_04(d) | Spotted B-86 Titan 38541 | -4/Hub_04(d) | Discovered new exit (range 14) 38560 | -4/Hub_04(d) | Identified exit to Research 38602 | -4/Hub_04(d) | Network Hub disabled 38614 | -4/Hub_04(d) | Entered Research 38614 | -3/Research | Evolved 2 slots: Utility x1, Weapon x1 38884 | -3/Research | Fabricated Imp. KE Penetrator? 39013 | -3/Research | Local fabrication network quarantined 39280 | -3/Research | Destroyed 10 combat bots 39614 | -3/Research | First assault squad dispatched 39652 | -3/Research | Discovered new exit (range 3) 39656 | -3/Research | Identified exit to Armory 39831 | -3/Research | Discovered new exit (range 10) 39845 | -3/Research | Identified exit to Testing 40266 | -3/Research | Entered Testing 40330 | -3/Testing | Spotted PH-MDVWOKQQVY 40366 | -3/Testing | Destroyed PH-MDVWOKQQVY 40423 | -3/Testing | Garrison activated, responded to threat 40540 | -3/Testing | Found Prototype Device 40540 | -3/Testing | Identified Exp. Weapon Cycler 40561 | -3/Testing | Found Prototype Reactor 40561 | -3/Testing | Identified Zero-point Reactor 40875 | -3/Testing | Found Prototype Energy Cannon 40876 | -3/Testing | Identified Null Cannon 41291 | -3/Testing | Identified exit to Research 41524 | -3/Testing | Fabricated Hyp. Railgun? 41649 | -3/Testing | Found Prototype Hackware 41649 | -3/Testing | Identified Ghost Barrier 41852 | -3/Testing | Found Prototype Device 41904 | -3/Testing | Found Prototype Energy Cannon 41904 | -3/Testing | Identified Hpw. Disruptor Cannon 42043 | -3/Testing | Build established: Hacker-Mutant 42049 | -3/Testing | Identified AEGIS Remote Shield 42409 | -3/Testing | System corruption reached 10% 42488 | -3/Testing | Entered Research 42488 | -2/Research | Warlord forces began assault on 0b10 42488 | -2/Research | Evolved 2 slots: Power x1, Utility x1 42489 | -2/Research | Identified Vortex Chain Reactor 42537 | -2/Research | Fabricated Hyp. Railgun? 42558 | -2/Research | Identified exit to Quarantine 42598 | -2/Research | Research machine network offline 42645 | -2/Research | Build established: Hacker-Gunner 42691 | -2/Research | Local fabrication network quarantined 42887 | -2/Research | Borebot progress halted 42925 | -2/Research | Met up with Warlord 43005 | -2/Research | Found Prototype Processor 43005 | -2/Research | Identified Exp. Signal Interpreter 43052 | -2/Research | Borebot progress halted 43187 | -2/Research | Found Exp. Targeting Computer 43280 | -2/Research | Entered Quarantine 43603 | -2/Quarantine | Destroyed 7 combat bots 43772 | -2/Quarantine | Found Alien Artifact 43862 | -2/Quarantine | Repaired Centrium Heavy Treads 44232 | -2/Quarantine | Cryocooling Duct disabled 44247 | -2/Quarantine | Ambient heat levels rising (+20) 44247 | -2/Quarantine | Non-combat units ordered to evacuate 44530 | -2/Quarantine | First assault squad dispatched 44565 | -2/Quarantine | Identified Core Reset Matrix 44664 | -2/Quarantine | Destroyed 10 combat bots 45180 | -2/Quarantine | Discovered new exit (range 14) 45321 | -2/Quarantine | Identified exit to Access 45346 | -2/Quarantine | Repaired Hyp. Railgun 45416 | -2/Quarantine | Repaired Hyp. Railgun 45504 | -2/Quarantine | Repaired Hyp. Railgun 45890 | -2/Quarantine | Cryocooling Duct disabled 45892 | -2/Quarantine | Cryocooling Duct disabled 45898 | -2/Quarantine | Cryocooling Duct disabled 45905 | -2/Quarantine | Ambient heat levels rising (+20) 45905 | -2/Quarantine | Combat units ordered to evacuate 45907 | -2/Quarantine | Ambient heat levels rising (+20) 45913 | -2/Quarantine | Ambient heat levels rising (+20) 45965 | -2/Quarantine | Cryocooling Duct disabled 45980 | -2/Quarantine | Ambient heat levels rising (+20) 46005 | -2/Quarantine | Quarantine Guard activated 46013 | -2/Quarantine | Cryocooling Duct disabled 46028 | -2/Quarantine | Ambient heat levels rising (+20) 46152 | -2/Quarantine | Spotted Quarantine Guard 46164 | -2/Quarantine | Destroyed Quarantine Guard 46258 | -2/Quarantine | Spotted Quarantine Guard 46262 | -2/Quarantine | Destroyed Quarantine Guard 46512 | -2/Quarantine | Spotted Fortress 46749 | -2/Quarantine | Destroyed Fortress 46940 | -2/Quarantine | Discovered new exit (range 5) 46948 | -2/Quarantine | Identified exit to Section 7 46951 | -2/Quarantine | Entered Section 7 46999 | -2/Section 7 | Found Alien Artifact 46999 | -2/Section 7 | Identified Spacefold Activator 47294 | -2/Section 7 | Build established: Hacker-Mutant 47353 | -2/Section 7 | Spotted S7 Guard 47437 | -2/Section 7 | Destroyed S7 Guard 47506 | -2/Section 7 | Found Prototype Protection 47506 | -2/Section 7 | Identified Hvy. Regenerative Plating 47582 | -2/Section 7 | Found Alien Artifact 47582 | -2/Section 7 | Identified Core Membrane 47582 | -2/Section 7 | Installed Core Membrane, gained immunity to corruption 47853 | -2/Section 7 | Garrison activated, responded to threat 48073 | -2/Section 7 | Build established: Hacker-Gunner 48080 | -2/Section 7 | Repaired Hyp. Railgun 48117 | -2/Section 7 | Repaired Hyp. Railgun? 48226 | -2/Section 7 | Destroyed 8 combat bots 48429 | -2/Section 7 | Spotted S7 Guard 48451 | -2/Section 7 | First assault squad dispatched 48653 | -2/Section 7 | Destroyed S7 Guard 48674 | -2/Section 7 | Lost 3 parts (1n2w) 48707 | -2/Section 7 | Found Alien Artifact 48707 | -2/Section 7 | Identified Integrated Heat Negator 48707 | -2/Section 7 | Installed Integrated Heat Negator, increased core heat dissipation (+40) 49053 | -2/Section 7 | Build established: Scavenger-Gunner 49168 | -2/Section 7 | Adv. Hacking Suite fried by hacking feedback 49314 | -2/Section 7 | Spotted B-90 Cyclops 49372 | -2/Section 7 | Destroyed B-90 Cyclops 49433 | -2/Section 7 | Spotted Executioner 49443 | -2/Section 7 | Destroyed Executioner 49450 | -2/Section 7 | Destroyed Executioner 49502 | -2/Section 7 | Found Exp. Targeting Computer 49518 | -2/Section 7 | Found Prototype Device 49679 | -2/Section 7 | Destroyed 7 combat bots 49818 | -2/Section 7 | Found Alien Artifact 49824 | -2/Section 7 | Found Alien Artifact 49828 | -2/Section 7 | Found Alien Artifact 49978 | -2/Section 7 | Spotted B-99 Colossus 50063 | -2/Section 7 | Destroyed B-99 Colossus 50202 | -2/Section 7 | Found Alien Artifact 50203 | -2/Section 7 | Identified Integrity Redistributor 50203 | -2/Section 7 | Used Integrity Redistributor, redistributed integrity from core (-286) 50208 | -2/Section 7 | Found Integrity Redistributor 50216 | -2/Section 7 | Found Integrity Redistributor 50313 | -2/Section 7 | Found Alien Artifact 50313 | -2/Section 7 | Identified LRC Matter Compressor 50313 | -2/Section 7 | Installed LRC Matter Compressor, increased matter storage capacity (+125) 50330 | -2/Section 7 | Found Alien Artifact 50330 | -2/Section 7 | Identified LRC Boosters 50330 | -2/Section 7 | Installed LRC Boosters, increased mass support (+10) 50334 | -2/Section 7 | Found Alien Artifact 50334 | -2/Section 7 | Identified LRC Storage 50334 | -2/Section 7 | Installed LRC Storage, increased inventory capacity (+2) 51388 | -2/Section 7 | Destroyed 7 combat bots 51416 | -2/Section 7 | Found Alien Artifact 51416 | -2/Section 7 | Identified Microwarp Drive 51531 | -2/Section 7 | Core integrity fell below 50% 51606 | -2/Section 7 | Entered Access 51606 | -1/Access | Evolved 2 slots: Utility x2 51894 | -1/Access | First assault squad dispatched 52169 | -1/Access | Destroyed 8 combat bots 52281 | -1/Access | Garrison activated, responded to threat 52343 | -1/Access | Destroyed 13 combat bots 52525 | -1/Access | Used Integrity Redistributor, redistributed integrity from core (-296) 52543 | -1/Access | Destroyed 10 combat bots 52884 | -1/Access | Identified Hpw. Transdimensional Reconstructor (x2) 52884 | -1/Access | Warped through subspace 52884 | -1/Access | Spotted B-99 Colossus 52898 | -1/Access | Destroyed B-99 Colossus 52903 | -1/Access | Found Prototype Ballistic Gun 52912 | -1/Access | Found Prototype Ballistic Gun 52938 | -1/Access | Spotted B-99 Colossus 52951 | -1/Access | Destroyed B-99 Colossus 52957 | -1/Access | Found Prototype Ballistic Gun 52966 | -1/Access | Found Prototype Ballistic Gun 52966 | -1/Access | Identified Multirail (x4) 52967 | -1/Access | Warped through subspace 53117 | -1/Access | Identified exit to Command 53377 | -1/Access | High security lockdown imminent 53457 | -1/Access | High security lockdown engaged 53553 | -1/Access | Used Integrity Redistributor, redistributed integrity from core (-118) 53554 | -1/Access | Core integrity fell below 50% 53600 | -1/Access | Spotted Investigator 53600 | -1/Access | Destroyed Investigator 53621 | -1/Access | Identified Transdimensional Reconstructor 53621 | -1/Access | Warped through subspace 53636 | -1/Access | Destroyed 17 combat bots 53662 | -1/Access | Garrison activated, responded to threat 53768 | -1/Access | Destroyed 12 combat bots 53809 | -1/Access | Entered Command 54059 | -1/Command | First assault squad dispatched 54169 | -1/Command | Destroyed 9 combat bots 54489 | -1/Command | Destroyed 8 combat bots 54634 | -1/Command | Disengaged cave seal 54634 | -1/Command | Derelicts emerged from the dark tunnel 54634 | -1/Command | Welcomed Warlord to Command 54648 | -1/Command | High security lockdown imminent 54728 | -1/Command | High security lockdown engaged 54768 | -1/Command | Spotted B-99 Colossus 54778 | -1/Command | Destroyed B-99 Colossus 54785 | -1/Command | Found Multirail 55016 | -1/Command | Spotted Investigator 55023 | -1/Command | Spotted Striker 55136 | -1/Command | Spotted Striker 55136 | -1/Command | Spotted Striker 55138 | -1/Command | Destroyed Striker 55148 | -1/Command | Destroyed Striker 55176 | -1/Command | Destroyed 12 combat bots 55292 | -1/Command | Spotted Executioner 55292 | -1/Command | Spotted Executioner 55293 | -1/Command | Spotted Executioner 55305 | -1/Command | Core integrity fell below 20% 55306 | -1/Command | Destroyed Executioner 55306 | -1/Command | Spotted Executioner 55306 | -1/Command | Spotted Striker 55316 | -1/Command | Self-destructed Last Messages --------------- 55310_ Slug penetrates Warlord. 55310_ Multirail blown off. 55310_ E-15 Imp destroyed. 55310_ Penetrated by Slug. 55310_ Multirail destroyed. 55310_ Slug penetrates Wall. 55310_ Penetrated by Slug. 55310_ Exp. Cooling System destroyed. 55312_ Penetrated by Slug. 55312_ Hvy. Regenerative Plating destroyed. 55312_ Slug penetrates Executioner. 55312_ Slug penetrates Wall. 55312_ Slug penetrates Earth. 55313_ Adv. Cooling System destroyed. 55313_ Blast Slug penetrates L-61 Swordsman. 55313_ L-61 Swordsman knocked back. 55313_ Executioner destroyed. 55313_ Blast Slug penetrates Striker. 55314_ Slug penetrates Warlord. 55315_ Penetrated by Slug. Map ----- +----------------------------------------------------+ | ?????????# !! =# # #??? | | ?????????# % # # #??? | | ?????????+ = # # #??? | | ?????????# !%" ]!# #??? | | ?????????# #""#####=# ! !!# #??? | | ?????????# # ???##%###### #" #??? | | ?????????#?# ???# ### ##?? | | ???????????# ???# %% "#?? | | ???????????# ????# ### ##?? | | ???????????# ?????###??# #??? | | ???????????????????????# #??? | | ???????????##+##########%= #??? | | ???????????? % #??? | | ??????????????# % #??? | | ??????????????# %%[ #??# | | ??????????????# ## ? | | ??????????????# m ####### ?# | | ??????????????# #????# ? # | | ??????????????# ####;# "# #??## # ? | | ?????????????????? # #?#;;;;;#? | | ????????????????+ g # #? !#?? | | ????????????????# # # # | | ????????????????######g%/W# ; ? | | ?????????????##+######=*[*; [ #?? | | ???????????#% E %%E*l %!% #?? | | ?????????? +% %|%=%%%l l@!% #?? | | ???????????# gb%gh[ ==;;;;;;;; | | ???????????# bp*=!=%%% ;# | | ???????????##### g=%[%%=; #? | | ???????????????## K!!%!=!# #? | | ????????????????# %%%=!% # #? | | ????????????????# %!!!! ##+#;;;##? | | ????????????????# # [ ??? # ?? | | ????????????????#? ???? #?#? | | ?????????????????## ?????#??? | | ??????????????????# ????????? | | ??????????????????# ^ !????????? | | ??????????????????# ????????? | | ??????????????????# ????????? | | ????????????????????? ????????? | | ??????????????????????? ????????? | | ???????????????????????????????????? | | ???????????????????????????????????? | | ???????????????????????????????????? | | ???????????????????????????????????? | | ???????????????????????????????????? | | ???????????????????????????????????? | | ???????????????????????????????????? | | ???????????????????????????????????? | | ???????????????????????????????????? | +----------------------------------------------------+ Best States ------------- Heat Dissipation 179 Energy Generation 55 Energy Capacity 1200 Matter Stores 425 Matter Capacity 700 Sight Range 16 Robot Scan Range 18 Terrain Scan Density 10 Jamming Range 12 Armor Coverage 1200 Weapon Cycling 30 Evasion (%) 40 Targeting Accuracy 24 Target Analysis 10 Armor Integrity Analysis 40 Recoil Reduction 4 Salvage Targeting 2 Offensive Hacking 34 Defensive Hacking 34 Item Schematics ----------------- Hacking Suite | -9/Materials | Scanalyzed Gauss Rifle | -8/Materials | Scanalyzed Adv. Targeting Computer | -8/Materials | Hacked Coil Gun | -7/Factory | Hacked Adv. Sensor Array | -7/Factory | Hacked Combat Drone Bay | -7/Data Miner | Free Lgt. Regenerative Plating | -7/Data Miner | Free Exp. Flexi-carbon Leg | -7/Data Miner | Free Exp. Transmission Jammer | -7/Data Miner | Free Exp. ECM Suite | -7/Data Miner | Free Cloaking Device | -7/Data Miner | Free Plasma Sword | -7/Data Miner | Free Kinetic Spear | -7/Data Miner | Free Hyp. Gauss Rifle | -6/Factory | Scanalyzed Adv. Signal Interpreter | -6/Factory | Hacked Imp. Target Analyzer | -6/Factory | Scanalyzed Imp. Salvage Targeting Computer | -6/Factory | Scanalyzed Weapon Cycler | -6/Factory | Scanalyzed Arm. Heavy Treads | -5/Factory | Hacked Lrn. Sensor Array | -5/Factory | Hacked Adv. Hacking Suite | -4/Extension | Hacked Imp. Weapon Cycler | -4/Extension | Hacked Imp. KE Penetrator | -3/Research | Scanalyzed Helical Railgun | -3/Research | Scanalyzed Hyp. Railgun | -3/Research | Hacked Exp. Weapon Cycler | -2/Quarantine | Hacked Lrn. Tractor Beam | -2/Section 7 | Scanalyzed Centrium Heavy Treads | -2/Section 7 | Scanalyzed Robot Schematics ------------------ S-27 Virus | -7/Data Miner | Free G-50 Soldier | -7/Data Miner | Free H-66 Slayer | -7/Data Miner | Free I-36 Angel | -7/Data Miner | Free I-47 Archangel | -7/Data Miner | Free Fabricated ------------ Gauss Rifle | x2 | -7/Factory Gauss Rifle | x2 | -7/Factory Hyp. Gauss Rifle | x2 | -7/Factory | Preloaded Hyp. Gauss Rifle | x2 | -7/Factory | Preloaded Hyp. Gauss Rifle | x2 | -6/Factory Hyp. Gauss Rifle | x2 | -6/Factory Adv. Signal Interpreter | x2 | -5/Factory Arm. Heavy Treads | x2 | -5/Factory Arm. Heavy Treads | x2 | -5/Factory Lrn. Sensor Array | x1 | -4/Factory Imp. KE Penetrator | x1 | -3/Research Hyp. Railgun | x2 | -3/Testing Hyp. Railgun | x2 | -2/Research Alien Tech Used ----------------- Spacefold Activator Core Membrane Integrated Heat Negator Integrity Redistributor LRC Matter Compressor LRC Boosters LRC Storage Microwarp Drive High-powered Transdimensional Reconstructor Transdimensional Reconstructor Achievements -------------- None Challenges ------------ None Game ------ Seed HugeReinforcedNegator Manual? 0 Play Time 05:01:19 Cumulative 1318.6 hours Start 2021.07.13 @ 18:58:51 End 2021.07.14 @ 17:46:14 Sessions 3 Manual Loads 0 Difficulty Rogue Special Mode None Game No. 447 Rogue 447 Adventurer 0 Explorer 0 Win Type - Total 94 Types 20/12/37/5/1/2/15/1/1 Lore% 97 Gallery% 96 Achievement% 86 Wizard Run 0 Options --------- ASCII 0 Keyboard 0 Movement Numpad Keybinds 0 Fullscreen 1 Font 18/SmallcapsGlow Map View 76x50 Tactical HUD 1 Map Filters NONE Filters NONE Steam 1 RUN: e0911c91-e327-4c7f-9c13-f58eb717501b